Workbook

Sheet Master
A1: Office Name | C1: GSSS Deogarh | G1: DDO Code | I1: 18277
A2: TAN No. | C2: ZXCVB1234B | D2: GA55 A Offline | G2: Financial Year | I2: 2021-22
A4: Sr.No. | B4: Employee Name | C4: Designation | D4: GPF/PRAN Number | E4: Employee ID | F4: Pay Scale | G4: Account No | H4: PAN No. | I4: NPS/GPF | J4: Probation | L4: Post @ Office | N4: Months
A5: =IF(Table1[Employee Name]="","",ROWS($A$1:A1)) -> 1 | B5: Ashwini Kumar | C5: Lecturer | D5: 12345678910 | E5: RJNA12345678910 | F5: L-12 | G5: 1234567891011 | H5: ABCD1234E | I5: NPS | J5: NO | L5: Pprincipal | N5: March
A6: =IF(Table1[Employee Name]="","",ROWS($A$1:A2)) ->  | L6: Lecturer | N6: April
A7: =IF(Table1[Employee Name]="","",ROWS($A$1:A3)) ->  | L7: Sr. Teacher | N7: May
A8: =IF(Table1[Employee Name]="","",ROWS($A$1:A4)) ->  | L8: LDC | N8: June
A9: =IF(Table1[Employee Name]="","",ROWS($A$1:A5)) ->  | L9: UDC | N9: July
A10: =IF(Table1[Employee Name]="","",ROWS($A$1:A6)) ->  | L10: OA | N10: August
A11: =IF(Table1[Employee Name]="","",ROWS($A$1:A7)) ->  | L11: Peon | N11: September
A12: =IF(Table1[Employee Name]="","",ROWS($A$1:A8)) ->  | L12: Teacher L-1 | N12: October
A13: =IF(Table1[Employee Name]="","",ROWS($A$1:A9)) ->  | L13: Teacher L-2 | N13: November
A14: =IF(Table1[Employee Name]="","",ROWS($A$1:A10)) ->  | L14: Prabodhak | N14: December
A15: =IF(Table1[Employee Name]="","",ROWS($A$1:A11)) ->  | L15: other | N15: January
A16: =IF(Table1[Employee Name]="","",ROWS($A$1:A12)) ->  | L16: other | N16: February
A17: =IF(Table1[Employee Name]="","",ROWS($A$1:A13)) ->  | L17: other
A18: =IF(Table1[Employee Name]="","",ROWS($A$1:A14)) ->  | L18: other
A19: =IF(Table1[Employee Name]="","",ROWS($A$1:A15)) ->  | L19: other
A20: =IF(Table1[Employee Name]="","",ROWS($A$1:A16)) ->  | L20: other
A21: =IF(Table1[Employee Name]="","",ROWS($A$1:A17)) ->  | L21: other
A22: =IF(Table1[Employee Name]="","",ROWS($A$1:A18)) ->  | L22: other
A23: =IF(Table1[Employee Name]="","",ROWS($A$1:A19)) ->  | L23: other
A24: =IF(Table1[Employee Name]="","",ROWS($A$1:A20)) ->  | L24: other
A25: =IF(Table1[Employee Name]="","",ROWS($A$1:A21)) ->  | L25: other
A26: =IF(Table1[Employee Name]="","",ROWS($A$1:A22)) ->  | L26: other
A27: =IF(Table1[Employee Name]="","",ROWS($A$1:A23)) ->  | L27: other
A28: =IF(Table1[Employee Name]="","",ROWS($A$1:A24)) ->  | L28: other
A29: =IF(Table1[Employee Name]="","",ROWS($A$1:A25)) ->  | L29: other
A30: =IF(Table1[Employee Name]="","",ROWS($A$1:A26)) ->  | L30: other
A31: =IF(Table1[Employee Name]="","",ROWS($A$1:A27)) ->  | L31: other
A32: =IF(Table1[Employee Name]="","",ROWS($A$1:A28)) -> 
A33: =IF(Table1[Employee Name]="","",ROWS($A$1:A29)) -> 
A34: =IF(Table1[Employee Name]="","",ROWS($A$1:A30)) -> 
A35: =IF(Table1[Employee Name]="","",ROWS($A$1:A31)) -> 
A36: =IF(Table1[Employee Name]="","",ROWS($A$1:A32)) -> 
A37: =IF(Table1[Employee Name]="","",ROWS($A$1:A33)) -> 
A38: =IF(Table1[Employee Name]="","",ROWS($A$1:A34)) -> 
A39: =IF(Table1[Employee Name]="","",ROWS($A$1:A35)) -> 
A40: =IF(Table1[Employee Name]="","",ROWS($A$1:A36)) -> 
A41: =IF(Table1[Employee Name]="","",ROWS($A$1:A37)) -> 
A42: =IF(Table1[Employee Name]="","",ROWS($A$1:A38)) -> 
A43: =IF(Table1[Employee Name]="","",ROWS($A$1:A39)) -> 
A44: =IF(Table1[Employee Name]="","",ROWS($A$1:A40)) -> 
A45: =IF(Table1[Employee Name]="","",ROWS($A$1:A41)) -> 
A46: =IF(Table1[Employee Name]="","",ROWS($A$1:A42)) -> 
A47: =IF(Table1[Employee Name]="","",ROWS($A$1:A43)) -> 
A48: =IF(Table1[Employee Name]="","",ROWS($A$1:A44)) -> 
A49: =IF(Table1[Employee Name]="","",ROWS($A$1:A45)) -> 
A50: =IF(Table1[Employee Name]="","",ROWS($A$1:A46)) -> 
A51: =IF(Table1[Employee Name]="","",ROWS($A$1:A47)) -> 
A52: =IF(Table1[Employee Name]="","",ROWS($A$1:A48)) -> 
A53: =IF(Table1[Employee Name]="","",ROWS($A$1:A49)) -> 
A54: =IF(Table1[Employee Name]="","",ROWS($A$1:A50)) -> 
A55: =IF(Table1[Employee Name]="","",ROWS($A$1:A51)) -> 
A56: =IF(Table1[Employee Name]="","",ROWS($A$1:A52)) -> 
A57: =IF(Table1[Employee Name]="","",ROWS($A$1:A53)) -> 
A58: =IF(Table1[Employee Name]="","",ROWS($A$1:A54)) -> 
A59: =IF(Table1[Employee Name]="","",ROWS($A$1:A55)) -> 
A60: =IF(Table1[Employee Name]="","",ROWS($A$1:A56)) -> 
A61: =IF(Table1[Employee Name]="","",ROWS($A$1:A57)) -> 
A62: =IF(Table1[Employee Name]="","",ROWS($A$1:A58)) -> 
A63: =IF(Table1[Employee Name]="","",ROWS($A$1:A59)) -> 
A64: =IF(Table1[Employee Name]="","",ROWS($A$1:A60)) -> 
A65: =IF(Table1[Employee Name]="","",ROWS($A$1:A61)) -> 
A66: =IF(Table1[Employee Name]="","",ROWS($A$1:A62)) -> 
A67: =IF(Table1[Employee Name]="","",ROWS($A$1:A63)) -> 
A68: =IF(Table1[Employee Name]="","",ROWS($A$1:A64)) -> 
A69: =IF(Table1[Employee Name]="","",ROWS($A$1:A65)) -> 
A70: =IF(Table1[Employee Name]="","",ROWS($A$1:A66)) -> 
A71: =IF(Table1[Employee Name]="","",ROWS($A$1:A67)) -> 
A72: =IF(Table1[Employee Name]="","",ROWS($A$1:A68)) -> 
A73: =IF(Table1[Employee Name]="","",ROWS($A$1:A69)) -> 
A74: =IF(Table1[Employee Name]="","",ROWS($A$1:A70)) -> 
A75: =IF(Table1[Employee Name]="","",ROWS($A$1:A71)) -> 
A76: =IF(Table1[Employee Name]="","",ROWS($A$1:A72)) -> 
A77: =IF(Table1[Employee Name]="","",ROWS($A$1:A73)) -> 
A78: =IF(Table1[Employee Name]="","",ROWS($A$1:A74)) -> 
A79: =IF(Table1[Employee Name]="","",ROWS($A$1:A75)) -> 
A80: =IF(Table1[Employee Name]="","",ROWS($A$1:A76)) -> 
A81: =IF(Table1[Employee Name]="","",ROWS($A$1:A77)) -> 
A82: =IF(Table1[Employee Name]="","",ROWS($A$1:A78)) -> 
A83: =IF(Table1[Employee Name]="","",ROWS($A$1:A79)) -> 
A84: =IF(Table1[Employee Name]="","",ROWS($A$1:A80)) -> 
A85: =IF(Table1[Employee Name]="","",ROWS($A$1:A81)) -> 
A86: =IF(Table1[Employee Name]="","",ROWS($A$1:A82)) -> 
A87: =IF(Table1[Employee Name]="","",ROWS($A$1:A83)) -> 
A88: =IF(Table1[Employee Name]="","",ROWS($A$1:A84)) -> 
A89: =IF(Table1[Employee Name]="","",ROWS($A$1:A85)) -> 
A90: =IF(Table1[Employee Name]="","",ROWS($A$1:A86)) -> 
A91: =IF(Table1[Employee Name]="","",ROWS($A$1:A87)) -> 
A92: =IF(Table1[Employee Name]="","",ROWS($A$1:A88)) -> 
A93: =IF(Table1[Employee Name]="","",ROWS($A$1:A89)) -> 
A94: =IF(Table1[Employee Name]="","",ROWS($A$1:A90)) -> 
A95: =IF(Table1[Employee Name]="","",ROWS($A$1:A91)) -> 
A96: =IF(Table1[Employee Name]="","",ROWS($A$1:A92)) -> 
A97: =IF(Table1[Employee Name]="","",ROWS($A$1:A93)) -> 
A98: =IF(Table1[Employee Name]="","",ROWS($A$1:A94)) -> 
A99: =IF(Table1[Employee Name]="","",ROWS($A$1:A95)) -> 
A100: =IF(Table1[Employee Name]="","",ROWS($A$1:A96)) -> 
A101: =IF(Table1[Employee Name]="","",ROWS($A$1:A97)) -> 
A102: =IF(Table1[Employee Name]="","",ROWS($A$1:A98)) -> 
A103: =IF(Table1[Employee Name]="","",ROWS($A$1:A99)) -> 
A104: =IF(Table1[Employee Name]="","",ROWS($A$1:A100)) -> 
A105: =IF(Table1[Employee Name]="","",ROWS($A$1:A101)) -> 
A106: =IF(Table1[Employee Name]="","",ROWS($A$1:A102)) -> 
A107: =IF(Table1[Employee Name]="","",ROWS($A$1:A103)) -> 
A108: =IF(Table1[Employee Name]="","",ROWS($A$1:A104)) -> 
A109: =IF(Table1[Employee Name]="","",ROWS($A$1:A105)) -> 
A110: =IF(Table1[Employee Name]="","",ROWS($A$1:A106)) -> 
A111: =IF(Table1[Employee Name]="","",ROWS($A$1:A107)) -> 
A112: =IF(Table1[Employee Name]="","",ROWS($A$1:A108)) -> 
A113: =IF(Table1[Employee Name]="","",ROWS($A$1:A109)) -> 
A114: =IF(Table1[Employee Name]="","",ROWS($A$1:A110)) -> 
A115: =IF(Table1[Employee Name]="","",ROWS($A$1:A111)) -> 
A116: =IF(Table1[Employee Name]="","",ROWS($A$1:A112)) -> 
A117: =IF(Table1[Employee Name]="","",ROWS($A$1:A113)) -> 
A118: =IF(Table1[Employee Name]="","",ROWS($A$1:A114)) -> 
A119: =IF(Table1[Employee Name]="","",ROWS($A$1:A115)) -> 
A120: =IF(Table1[Employee Name]="","",ROWS($A$1:A116)) -> 
A121: =IF(Table1[Employee Name]="","",ROWS($A$1:A117)) -> 
A122: =IF(Table1[Employee Name]="","",ROWS($A$1:A118)) -> 
A123: =IF(Table1[Employee Name]="","",ROWS($A$1:A119)) -> 
A124: =IF(Table1[Employee Name]="","",ROWS($A$1:A120)) -> 
A125: =IF(Table1[Employee Name]="","",ROWS($A$1:A121)) -> 
A126: =IF(Table1[Employee Name]="","",ROWS($A$1:A122)) -> 
A127: =IF(Table1[Employee Name]="","",ROWS($A$1:A123)) -> 
A128: =IF(Table1[Employee Name]="","",ROWS($A$1:A124)) -> 
A129: =IF(Table1[Employee Name]="","",ROWS($A$1:A125)) -> 
A130: =IF(Table1[Employee Name]="","",ROWS($A$1:A126)) -> 
A131: =IF(Table1[Employee Name]="","",ROWS($A$1:A127)) -> 
A132: =IF(Table1[Employee Name]="","",ROWS($A$1:A128)) -> 
A133: =IF(Table1[Employee Name]="","",ROWS($A$1:A129)) -> 
A134: =IF(Table1[Employee Name]="","",ROWS($A$1:A130)) -> 
A135: =IF(Table1[Employee Name]="","",ROWS($A$1:A131)) -> 
A136: =IF(Table1[Employee Name]="","",ROWS($A$1:A132)) -> 
A137: =IF(Table1[Employee Name]="","",ROWS($A$1:A133)) -> 
A138: =IF(Table1[Employee Name]="","",ROWS($A$1:A134)) -> 
A139: =IF(Table1[Employee Name]="","",ROWS($A$1:A135)) -> 
A140: =IF(Table1[Employee Name]="","",ROWS($A$1:A136)) -> 
A141: =IF(Table1[Employee Name]="","",ROWS($A$1:A137)) -> 
A142: =IF(Table1[Employee Name]="","",ROWS($A$1:A138)) -> 
A143: =IF(Table1[Employee Name]="","",ROWS($A$1:A139)) -> 
A144: =IF(Table1[Employee Name]="","",ROWS($A$1:A140)) -> 
A145: =IF(Table1[Employee Name]="","",ROWS($A$1:A141)) -> 
A146: =IF(Table1[Employee Name]="","",ROWS($A$1:A142)) -> 
A147: =IF(Table1[Employee Name]="","",ROWS($A$1:A143)) -> 
A148: =IF(Table1[Employee Name]="","",ROWS($A$1:A144)) -> 
A149: =IF(Table1[Employee Name]="","",ROWS($A$1:A145)) -> 
A150: =IF(Table1[Employee Name]="","",ROWS($A$1:A146)) -> 
A151: =IF(Table1[Employee Name]="","",ROWS($A$1:A147)) -> 
A152: =IF(Table1[Employee Name]="","",ROWS($A$1:A148)) -> 
A153: =IF(Table1[Employee Name]="","",ROWS($A$1:A149)) -> 
A154: =IF(Table1[Employee Name]="","",ROWS($A$1:A150)) -> 
A155: =IF(Table1[Employee Name]="","",ROWS($A$1:A151)) -> 
A156: =IF(Table1[Employee Name]="","",ROWS($A$1:A152)) -> 
A157: =IF(Table1[Employee Name]="","",ROWS($A$1:A153)) -> 
A158: =IF(Table1[Employee Name]="","",ROWS($A$1:A154)) -> 
A159: =IF(Table1[Employee Name]="","",ROWS($A$1:A155)) -> 
A160: =IF(Table1[Employee Name]="","",ROWS($A$1:A156)) -> 
A161: =IF(Table1[Employee Name]="","",ROWS($A$1:A157)) -> 
A162: =IF(Table1[Employee Name]="","",ROWS($A$1:A158)) -> 
A163: =IF(Table1[Employee Name]="","",ROWS($A$1:A159)) -> 
A164: =IF(Table1[Employee Name]="","",ROWS($A$1:A160)) -> 
A165: =IF(Table1[Employee Name]="","",ROWS($A$1:A161)) -> 
A166: =IF(Table1[Employee Name]="","",ROWS($A$1:A162)) -> 
A167: =IF(Table1[Employee Name]="","",ROWS($A$1:A163)) -> 
A168: =IF(Table1[Employee Name]="","",ROWS($A$1:A164)) -> 
A169: =IF(Table1[Employee Name]="","",ROWS($A$1:A165)) -> 
A170: =IF(Table1[Employee Name]="","",ROWS($A$1:A166)) -> 
A171: =IF(Table1[Employee Name]="","",ROWS($A$1:A167)) -> 
A172: =IF(Table1[Employee Name]="","",ROWS($A$1:A168)) -> 
A173: =IF(Table1[Employee Name]="","",ROWS($A$1:A169)) -> 
A174: =IF(Table1[Employee Name]="","",ROWS($A$1:A170)) -> 
A175: =IF(Table1[Employee Name]="","",ROWS($A$1:A171)) -> 
A176: =IF(Table1[Employee Name]="","",ROWS($A$1:A172)) -> 
A177: =IF(Table1[Employee Name]="","",ROWS($A$1:A173)) -> 
A178: =IF(Table1[Employee Name]="","",ROWS($A$1:A174)) -> 
A179: =IF(Table1[Employee Name]="","",ROWS($A$1:A175)) -> 
A180: =IF(Table1[Employee Name]="","",ROWS($A$1:A176)) -> 
A181: =IF(Table1[Employee Name]="","",ROWS($A$1:A177)) -> 
A182: =IF(Table1[Employee Name]="","",ROWS($A$1:A178)) -> 

Sheet DA HRA Rate
A1: =Master!$C$1 -> GSSS Deogarh
A2: DA and HRA Rates Monthwise
A4: Sr.No | B4: Month | C4: DA Rate | D4: HRA Rate
A5: 3 | B5: March | C5: 17.00% | D5: 8.00%
A6: 4 | B6: April | C6: 17.00% | D6: 8.00%
A7: 5 | B7: May | C7: 17.00% | D7: 8.00%
A8: 6 | B8: June | C8: 17.00% | D8: 8.00%
A9: 7 | B9: July | C9: 28.00% | D9: 8.00%
A10: 8 | B10: August | C10: 28.00% | D10: 9.00%
A11: 9 | B11: September | C11: 28.00% | D11: 9.00%
A12: 10 | B12: October | C12: 28.00% | D12: 9.00%
A13: 11 | B13: November | C13: 28.00% | D13: 9.00%
A14: 12 | B14: December | C14: 28.00% | D14: 9.00%
A15: 1 | B15: January | C15: 28.00% | D15: 9.00%
A16: 2 | B16: February | C16: 28.00% | D16: 9.00%

Sheet Allowance
A1: =Master!$C$1 -> GSSS Deogarh
A2: Allowances Detail Employee wise
A4: Sr.No | B4: Employee Name | C4: March Basic | D4: Handi. All. Amount | E4: Wash All. Amount | F4: CCA Amount | G4: Ot. Allow 1 | H4: Ot. Allow 2 | I4: Ot. Allow 3 | J4: Ot. Allow 4 | K4: If Basic Changed Month | L4: Changed Basic | M4: Surrender Month | N4: Surrender DA Rate
A5: =IF(Table1[[#This Row],[Sr.No.]]="","",Table1[[#This Row],[Sr.No.]]) -> 1 | B5: =IF(Table1[[#This Row],[Employee Name]]="","",Table1[[#This Row],[Employee Name]]) -> Ashwini Kumar | C5: 47000 | N5: =IFERROR(VLOOKUP(Table3[[#This Row],[Surrender Month]],DA_HRA_Rate,3,0),"") -> 
A6: =IF(Table1[[#This Row],[Sr.No.]]="","",Table1[[#This Row],[Sr.No.]]) ->  | B6: =IF(Table1[[#This Row],[Employee Name]]="","",Table1[[#This Row],[Employee Name]]) ->  | N6: =IFERROR(VLOOKUP(Table3[[#This Row],[Surrender Month]],DA_HRA_Rate,3,0),"") -> 
A7: =IF(Table1[[#This Row],[Sr.No.]]="","",Table1[[#This Row],[Sr.No.]]) ->  | B7: =IF(Table1[[#This Row],[Employee Name]]="","",Table1[[#This Row],[Employee Name]]) ->  | N7: =IFERROR(VLOOKUP(Table3[[#This Row],[Surrender Month]],DA_HRA_Rate,3,0),"") -> 
A8: =IF(Table1[[#This Row],[Sr.No.]]="","",Table1[[#This Row],[Sr.No.]]) ->  | B8: =IF(Table1[[#This Row],[Employee Name]]="","",Table1[[#This Row],[Employee Name]]) ->  | N8: =IFERROR(VLOOKUP(Table3[[#This Row],[Surrender Month]],DA_HRA_Rate,3,0),"") -> 
A9: =IF(Table1[[#This Row],[Sr.No.]]="","",Table1[[#This Row],[Sr.No.]]) ->  | B9: =IF(Table1[[#This Row],[Employee Name]]="","",Table1[[#This Row],[Employee Name]]) ->  | N9: =IFERROR(VLOOKUP(Table3[[#This Row],[Surrender Month]],DA_HRA_Rate,3,0),"") -> 
A10: =IF(Table1[[#This Row],[Sr.No.]]="","",Table1[[#This Row],[Sr.No.]]) ->  | B10: =IF(Table1[[#This Row],[Employee Name]]="","",Table1[[#This Row],[Employee Name]]) ->  | N10: =IFERROR(VLOOKUP(Table3[[#This Row],[Surrender Month]],DA_HRA_Rate,3,0),"") -> 
A11: =IF(Table1[[#This Row],[Sr.No.]]="","",Table1[[#This Row],[Sr.No.]]) ->  | B11: =IF(Table1[[#This Row],[Employee Name]]="","",Table1[[#This Row],[Employee Name]]) ->  | N11: =IFERROR(VLOOKUP(Table3[[#This Row],[Surrender Month]],DA_HRA_Rate,3,0),"") -> 
A12: =IF(Table1[[#This Row],[Sr.No.]]="","",Table1[[#This Row],[Sr.No.]]) ->  | B12: =IF(Table1[[#This Row],[Employee Name]]="","",Table1[[#This Row],[Employee Name]]) ->  | N12: =IFERROR(VLOOKUP(Table3[[#This Row],[Surrender Month]],DA_HRA_Rate,3,0),"") -> 
A13: =IF(Table1[[#This Row],[Sr.No.]]="","",Table1[[#This Row],[Sr.No.]]) ->  | B13: =IF(Table1[[#This Row],[Employee Name]]="","",Table1[[#This Row],[Employee Name]]) ->  | N13: =IFERROR(VLOOKUP(Table3[[#This Row],[Surrender Month]],DA_HRA_Rate,3,0),"") -> 
A14: =IF(Table1[[#This Row],[Sr.No.]]="","",Table1[[#This Row],[Sr.No.]]) ->  | B14: =IF(Table1[[#This Row],[Employee Name]]="","",Table1[[#This Row],[Employee Name]]) ->  | N14: =IFERROR(VLOOKUP(Table3[[#This Row],[Surrender Month]],DA_HRA_Rate,3,0),"") -> 
A15: =IF(Table1[[#This Row],[Sr.No.]]="","",Table1[[#This Row],[Sr.No.]]) ->  | B15: =IF(Table1[[#This Row],[Employee Name]]="","",Table1[[#This Row],[Employee Name]]) ->  | N15: =IFERROR(VLOOKUP(Table3[[#This Row],[Surrender Month]],DA_HRA_Rate,3,0),"") -> 
A16: =IF(Table1[[#This Row],[Sr.No.]]="","",Table1[[#This Row],[Sr.No.]]) ->  | B16: =IF(Table1[[#This Row],[Employee Name]]="","",Table1[[#This Row],[Employee Name]]) ->  | N16: =IFERROR(VLOOKUP(Table3[[#This Row],[Surrender Month]],DA_HRA_Rate,3,0),"") -> 
A17: =IF(Table1[[#This Row],[Sr.No.]]="","",Table1[[#This Row],[Sr.No.]]) ->  | B17: =IF(Table1[[#This Row],[Employee Name]]="","",Table1[[#This Row],[Employee Name]]) ->  | N17: =IFERROR(VLOOKUP(Table3[[#This Row],[Surrender Month]],DA_HRA_Rate,3,0),"") -> 
A18: =IF(Table1[[#This Row],[Sr.No.]]="","",Table1[[#This Row],[Sr.No.]]) ->  | B18: =IF(Table1[[#This Row],[Employee Name]]="","",Table1[[#This Row],[Employee Name]]) ->  | N18: =IFERROR(VLOOKUP(Table3[[#This Row],[Surrender Month]],DA_HRA_Rate,3,0),"") -> 
A19: =IF(Table1[[#This Row],[Sr.No.]]="","",Table1[[#This Row],[Sr.No.]]) ->  | B19: =IF(Table1[[#This Row],[Employee Name]]="","",Table1[[#This Row],[Employee Name]]) ->  | N19: =IFERROR(VLOOKUP(Table3[[#This Row],[Surrender Month]],DA_HRA_Rate,3,0),"") -> 
A20: =IF(Table1[[#This Row],[Sr.No.]]="","",Table1[[#This Row],[Sr.No.]]) ->  | B20: =IF(Table1[[#This Row],[Employee Name]]="","",Table1[[#This Row],[Employee Name]]) ->  | N20: =IFERROR(VLOOKUP(Table3[[#This Row],[Surrender Month]],DA_HRA_Rate,3,0),"") -> 
A21: =IF(Table1[[#This Row],[Sr.No.]]="","",Table1[[#This Row],[Sr.No.]]) ->  | B21: =IF(Table1[[#This Row],[Employee Name]]="","",Table1[[#This Row],[Employee Name]]) ->  | N21: =IFERROR(VLOOKUP(Table3[[#This Row],[Surrender Month]],DA_HRA_Rate,3,0),"") -> 
A22: =IF(Table1[[#This Row],[Sr.No.]]="","",Table1[[#This Row],[Sr.No.]]) ->  | B22: =IF(Table1[[#This Row],[Employee Name]]="","",Table1[[#This Row],[Employee Name]]) ->  | N22: =IFERROR(VLOOKUP(Table3[[#This Row],[Surrender Month]],DA_HRA_Rate,3,0),"") -> 
A23: =IF(Table1[[#This Row],[Sr.No.]]="","",Table1[[#This Row],[Sr.No.]]) ->  | B23: =IF(Table1[[#This Row],[Employee Name]]="","",Table1[[#This Row],[Employee Name]]) ->  | N23: =IFERROR(VLOOKUP(Table3[[#This Row],[Surrender Month]],DA_HRA_Rate,3,0),"") -> 
A24: =IF(Table1[[#This Row],[Sr.No.]]="","",Table1[[#This Row],[Sr.No.]]) ->  | B24: =IF(Table1[[#This Row],[Employee Name]]="","",Table1[[#This Row],[Employee Name]]) ->  | N24: =IFERROR(VLOOKUP(Table3[[#This Row],[Surrender Month]],DA_HRA_Rate,3,0),"") -> 
A25: =IF(Table1[[#This Row],[Sr.No.]]="","",Table1[[#This Row],[Sr.No.]]) ->  | B25: =IF(Table1[[#This Row],[Employee Name]]="","",Table1[[#This Row],[Employee Name]]) ->  | N25: =IFERROR(VLOOKUP(Table3[[#This Row],[Surrender Month]],DA_HRA_Rate,3,0),"") -> 
A26: =IF(Table1[[#This Row],[Sr.No.]]="","",Table1[[#This Row],[Sr.No.]]) ->  | B26: =IF(Table1[[#This Row],[Employee Name]]="","",Table1[[#This Row],[Employee Name]]) ->  | N26: =IFERROR(VLOOKUP(Table3[[#This Row],[Surrender Month]],DA_HRA_Rate,3,0),"") -> 
A27: =IF(Table1[[#This Row],[Sr.No.]]="","",Table1[[#This Row],[Sr.No.]]) ->  | B27: =IF(Table1[[#This Row],[Employee Name]]="","",Table1[[#This Row],[Employee Name]]) ->  | N27: =IFERROR(VLOOKUP(Table3[[#This Row],[Surrender Month]],DA_HRA_Rate,3,0),"") -> 
A28: =IF(Table1[[#This Row],[Sr.No.]]="","",Table1[[#This Row],[Sr.No.]]) ->  | B28: =IF(Table1[[#This Row],[Employee Name]]="","",Table1[[#This Row],[Employee Name]]) ->  | N28: =IFERROR(VLOOKUP(Table3[[#This Row],[Surrender Month]],DA_HRA_Rate,3,0),"") -> 
A29: =IF(Table1[[#This Row],[Sr.No.]]="","",Table1[[#This Row],[Sr.No.]]) ->  | B29: =IF(Table1[[#This Row],[Employee Name]]="","",Table1[[#This Row],[Employee Name]]) ->  | N29: =IFERROR(VLOOKUP(Table3[[#This Row],[Surrender Month]],DA_HRA_Rate,3,0),"") -> 
A30: =IF(Table1[[#This Row],[Sr.No.]]="","",Table1[[#This Row],[Sr.No.]]) ->  | B30: =IF(Table1[[#This Row],[Employee Name]]="","",Table1[[#This Row],[Employee Name]]) ->  | N30: =IFERROR(VLOOKUP(Table3[[#This Row],[Surrender Month]],DA_HRA_Rate,3,0),"") -> 
A31: =IF(Table1[[#This Row],[Sr.No.]]="","",Table1[[#This Row],[Sr.No.]]) ->  | B31: =IF(Table1[[#This Row],[Employee Name]]="","",Table1[[#This Row],[Employee Name]]) ->  | N31: =IFERROR(VLOOKUP(Table3[[#This Row],[Surrender Month]],DA_HRA_Rate,3,0),"") -> 
A32: =IF(Table1[[#This Row],[Sr.No.]]="","",Table1[[#This Row],[Sr.No.]]) ->  | B32: =IF(Table1[[#This Row],[Employee Name]]="","",Table1[[#This Row],[Employee Name]]) ->  | N32: =IFERROR(VLOOKUP(Table3[[#This Row],[Surrender Month]],DA_HRA_Rate,3,0),"") -> 
A33: =IF(Table1[[#This Row],[Sr.No.]]="","",Table1[[#This Row],[Sr.No.]]) ->  | B33: =IF(Table1[[#This Row],[Employee Name]]="","",Table1[[#This Row],[Employee Name]]) ->  | N33: =IFERROR(VLOOKUP(Table3[[#This Row],[Surrender Month]],DA_HRA_Rate,3,0),"") -> 
A34: =IF(Table1[[#This Row],[Sr.No.]]="","",Table1[[#This Row],[Sr.No.]]) ->  | B34: =IF(Table1[[#This Row],[Employee Name]]="","",Table1[[#This Row],[Employee Name]]) ->  | N34: =IFERROR(VLOOKUP(Table3[[#This Row],[Surrender Month]],DA_HRA_Rate,3,0),"") -> 
A35: =IF(Table1[[#This Row],[Sr.No.]]="","",Table1[[#This Row],[Sr.No.]]) ->  | B35: =IF(Table1[[#This Row],[Employee Name]]="","",Table1[[#This Row],[Employee Name]]) ->  | N35: =IFERROR(VLOOKUP(Table3[[#This Row],[Surrender Month]],DA_HRA_Rate,3,0),"") -> 
A36: =IF(Table1[[#This Row],[Sr.No.]]="","",Table1[[#This Row],[Sr.No.]]) ->  | B36: =IF(Table1[[#This Row],[Employee Name]]="","",Table1[[#This Row],[Employee Name]]) ->  | N36: =IFERROR(VLOOKUP(Table3[[#This Row],[Surrender Month]],DA_HRA_Rate,3,0),"") -> 
A37: =IF(Table1[[#This Row],[Sr.No.]]="","",Table1[[#This Row],[Sr.No.]]) ->  | B37: =IF(Table1[[#This Row],[Employee Name]]="","",Table1[[#This Row],[Employee Name]]) ->  | N37: =IFERROR(VLOOKUP(Table3[[#This Row],[Surrender Month]],DA_HRA_Rate,3,0),"") -> 
A38: =IF(Table1[[#This Row],[Sr.No.]]="","",Table1[[#This Row],[Sr.No.]]) ->  | B38: =IF(Table1[[#This Row],[Employee Name]]="","",Table1[[#This Row],[Employee Name]]) ->  | N38: =IFERROR(VLOOKUP(Table3[[#This Row],[Surrender Month]],DA_HRA_Rate,3,0),"") -> 
A39: =IF(Table1[[#This Row],[Sr.No.]]="","",Table1[[#This Row],[Sr.No.]]) ->  | B39: =IF(Table1[[#This Row],[Employee Name]]="","",Table1[[#This Row],[Employee Name]]) ->  | N39: =IFERROR(VLOOKUP(Table3[[#This Row],[Surrender Month]],DA_HRA_Rate,3,0),"") -> 
A40: =IF(Table1[[#This Row],[Sr.No.]]="","",Table1[[#This Row],[Sr.No.]]) ->  | B40: =IF(Table1[[#This Row],[Employee Name]]="","",Table1[[#This Row],[Employee Name]]) ->  | N40: =IFERROR(VLOOKUP(Table3[[#This Row],[Surrender Month]],DA_HRA_Rate,3,0),"") -> 
A41: =IF(Table1[[#This Row],[Sr.No.]]="","",Table1[[#This Row],[Sr.No.]]) ->  | B41: =IF(Table1[[#This Row],[Employee Name]]="","",Table1[[#This Row],[Employee Name]]) ->  | N41: =IFERROR(VLOOKUP(Table3[[#This Row],[Surrender Month]],DA_HRA_Rate,3,0),"") -> 
A42: =IF(Table1[[#This Row],[Sr.No.]]="","",Table1[[#This Row],[Sr.No.]]) ->  | B42: =IF(Table1[[#This Row],[Employee Name]]="","",Table1[[#This Row],[Employee Name]]) ->  | N42: =IFERROR(VLOOKUP(Table3[[#This Row],[Surrender Month]],DA_HRA_Rate,3,0),"") -> 
A43: =IF(Table1[[#This Row],[Sr.No.]]="","",Table1[[#This Row],[Sr.No.]]) ->  | B43: =IF(Table1[[#This Row],[Employee Name]]="","",Table1[[#This Row],[Employee Name]]) ->  | N43: =IFERROR(VLOOKUP(Table3[[#This Row],[Surrender Month]],DA_HRA_Rate,3,0),"") -> 
A44: =IF(Table1[[#This Row],[Sr.No.]]="","",Table1[[#This Row],[Sr.No.]]) ->  | B44: =IF(Table1[[#This Row],[Employee Name]]="","",Table1[[#This Row],[Employee Name]]) ->  | N44: =IFERROR(VLOOKUP(Table3[[#This Row],[Surrender Month]],DA_HRA_Rate,3,0),"") -> 
A45: =IF(Table1[[#This Row],[Sr.No.]]="","",Table1[[#This Row],[Sr.No.]]) ->  | B45: =IF(Table1[[#This Row],[Employee Name]]="","",Table1[[#This Row],[Employee Name]]) ->  | N45: =IFERROR(VLOOKUP(Table3[[#This Row],[Surrender Month]],DA_HRA_Rate,3,0),"") -> 
A46: =IF(Table1[[#This Row],[Sr.No.]]="","",Table1[[#This Row],[Sr.No.]]) ->  | B46: =IF(Table1[[#This Row],[Employee Name]]="","",Table1[[#This Row],[Employee Name]]) ->  | N46: =IFERROR(VLOOKUP(Table3[[#This Row],[Surrender Month]],DA_HRA_Rate,3,0),"") -> 
A47: =IF(Table1[[#This Row],[Sr.No.]]="","",Table1[[#This Row],[Sr.No.]]) ->  | B47: =IF(Table1[[#This Row],[Employee Name]]="","",Table1[[#This Row],[Employee Name]]) ->  | N47: =IFERROR(VLOOKUP(Table3[[#This Row],[Surrender Month]],DA_HRA_Rate,3,0),"") -> 
A48: =IF(Table1[[#This Row],[Sr.No.]]="","",Table1[[#This Row],[Sr.No.]]) ->  | B48: =IF(Table1[[#This Row],[Employee Name]]="","",Table1[[#This Row],[Employee Name]]) ->  | N48: =IFERROR(VLOOKUP(Table3[[#This Row],[Surrender Month]],DA_HRA_Rate,3,0),"") -> 
A49: =IF(Table1[[#This Row],[Sr.No.]]="","",Table1[[#This Row],[Sr.No.]]) ->  | B49: =IF(Table1[[#This Row],[Employee Name]]="","",Table1[[#This Row],[Employee Name]]) ->  | N49: =IFERROR(VLOOKUP(Table3[[#This Row],[Surrender Month]],DA_HRA_Rate,3,0),"") -> 
A50: =IF(Table1[[#This Row],[Sr.No.]]="","",Table1[[#This Row],[Sr.No.]]) ->  | B50: =IF(Table1[[#This Row],[Employee Name]]="","",Table1[[#This Row],[Employee Name]]) ->  | N50: =IFERROR(VLOOKUP(Table3[[#This Row],[Surrender Month]],DA_HRA_Rate,3,0),"") -> 
A51: =IF(Table1[[#This Row],[Sr.No.]]="","",Table1[[#This Row],[Sr.No.]]) ->  | B51: =IF(Table1[[#This Row],[Employee Name]]="","",Table1[[#This Row],[Employee Name]]) ->  | N51: =IFERROR(VLOOKUP(Table3[[#This Row],[Surrender Month]],DA_HRA_Rate,3,0),"") -> 
A52: =IF(Table1[[#This Row],[Sr.No.]]="","",Table1[[#This Row],[Sr.No.]]) ->  | B52: =IF(Table1[[#This Row],[Employee Name]]="","",Table1[[#This Row],[Employee Name]]) ->  | N52: =IFERROR(VLOOKUP(Table3[[#This Row],[Surrender Month]],DA_HRA_Rate,3,0),"") -> 
A53: =IF(Table1[[#This Row],[Sr.No.]]="","",Table1[[#This Row],[Sr.No.]]) ->  | B53: =IF(Table1[[#This Row],[Employee Name]]="","",Table1[[#This Row],[Employee Name]]) ->  | N53: =IFERROR(VLOOKUP(Table3[[#This Row],[Surrender Month]],DA_HRA_Rate,3,0),"") -> 
A54: =IF(Table1[[#This Row],[Sr.No.]]="","",Table1[[#This Row],[Sr.No.]]) ->  | B54: =IF(Table1[[#This Row],[Employee Name]]="","",Table1[[#This Row],[Employee Name]]) ->  | N54: =IFERROR(VLOOKUP(Table3[[#This Row],[Surrender Month]],DA_HRA_Rate,3,0),"") -> 
A55: =IF(Table1[[#This Row],[Sr.No.]]="","",Table1[[#This Row],[Sr.No.]]) ->  | B55: =IF(Table1[[#This Row],[Employee Name]]="","",Table1[[#This Row],[Employee Name]]) ->  | N55: =IFERROR(VLOOKUP(Table3[[#This Row],[Surrender Month]],DA_HRA_Rate,3,0),"") -> 
A56: =IF(Table1[[#This Row],[Sr.No.]]="","",Table1[[#This Row],[Sr.No.]]) ->  | B56: =IF(Table1[[#This Row],[Employee Name]]="","",Table1[[#This Row],[Employee Name]]) ->  | N56: =IFERROR(VLOOKUP(Table3[[#This Row],[Surrender Month]],DA_HRA_Rate,3,0),"") -> 
A57: =IF(Table1[[#This Row],[Sr.No.]]="","",Table1[[#This Row],[Sr.No.]]) ->  | B57: =IF(Table1[[#This Row],[Employee Name]]="","",Table1[[#This Row],[Employee Name]]) ->  | N57: =IFERROR(VLOOKUP(Table3[[#This Row],[Surrender Month]],DA_HRA_Rate,3,0),"") -> 
A58: =IF(Table1[[#This Row],[Sr.No.]]="","",Table1[[#This Row],[Sr.No.]]) ->  | B58: =IF(Table1[[#This Row],[Employee Name]]="","",Table1[[#This Row],[Employee Name]]) ->  | N58: =IFERROR(VLOOKUP(Table3[[#This Row],[Surrender Month]],DA_HRA_Rate,3,0),"") -> 
A59: =IF(Table1[[#This Row],[Sr.No.]]="","",Table1[[#This Row],[Sr.No.]]) ->  | B59: =IF(Table1[[#This Row],[Employee Name]]="","",Table1[[#This Row],[Employee Name]]) ->  | N59: =IFERROR(VLOOKUP(Table3[[#This Row],[Surrender Month]],DA_HRA_Rate,3,0),"") -> 
A60: =IF(Table1[[#This Row],[Sr.No.]]="","",Table1[[#This Row],[Sr.No.]]) ->  | B60: =IF(Table1[[#This Row],[Employee Name]]="","",Table1[[#This Row],[Employee Name]]) ->  | N60: =IFERROR(VLOOKUP(Table3[[#This Row],[Surrender Month]],DA_HRA_Rate,3,0),"") -> 
A61: =IF(Table1[[#This Row],[Sr.No.]]="","",Table1[[#This Row],[Sr.No.]]) ->  | B61: =IF(Table1[[#This Row],[Employee Name]]="","",Table1[[#This Row],[Employee Name]]) ->  | N61: =IFERROR(VLOOKUP(Table3[[#This Row],[Surrender Month]],DA_HRA_Rate,3,0),"") -> 
A62: =IF(Table1[[#This Row],[Sr.No.]]="","",Table1[[#This Row],[Sr.No.]]) ->  | B62: =IF(Table1[[#This Row],[Employee Name]]="","",Table1[[#This Row],[Employee Name]]) ->  | N62: =IFERROR(VLOOKUP(Table3[[#This Row],[Surrender Month]],DA_HRA_Rate,3,0),"") -> 
A63: =IF(Table1[[#This Row],[Sr.No.]]="","",Table1[[#This Row],[Sr.No.]]) ->  | B63: =IF(Table1[[#This Row],[Employee Name]]="","",Table1[[#This Row],[Employee Name]]) ->  | N63: =IFERROR(VLOOKUP(Table3[[#This Row],[Surrender Month]],DA_HRA_Rate,3,0),"") -> 
A64: =IF(Table1[[#This Row],[Sr.No.]]="","",Table1[[#This Row],[Sr.No.]]) ->  | B64: =IF(Table1[[#This Row],[Employee Name]]="","",Table1[[#This Row],[Employee Name]]) ->  | N64: =IFERROR(VLOOKUP(Table3[[#This Row],[Surrender Month]],DA_HRA_Rate,3,0),"") -> 
A65: =IF(Table1[[#This Row],[Sr.No.]]="","",Table1[[#This Row],[Sr.No.]]) ->  | B65: =IF(Table1[[#This Row],[Employee Name]]="","",Table1[[#This Row],[Employee Name]]) ->  | N65: =IFERROR(VLOOKUP(Table3[[#This Row],[Surrender Month]],DA_HRA_Rate,3,0),"") -> 
A66: =IF(Table1[[#This Row],[Sr.No.]]="","",Table1[[#This Row],[Sr.No.]]) ->  | B66: =IF(Table1[[#This Row],[Employee Name]]="","",Table1[[#This Row],[Employee Name]]) ->  | N66: =IFERROR(VLOOKUP(Table3[[#This Row],[Surrender Month]],DA_HRA_Rate,3,0),"") -> 
A67: =IF(Table1[[#This Row],[Sr.No.]]="","",Table1[[#This Row],[Sr.No.]]) ->  | B67: =IF(Table1[[#This Row],[Employee Name]]="","",Table1[[#This Row],[Employee Name]]) ->  | N67: =IFERROR(VLOOKUP(Table3[[#This Row],[Surrender Month]],DA_HRA_Rate,3,0),"") -> 
A68: =IF(Table1[[#This Row],[Sr.No.]]="","",Table1[[#This Row],[Sr.No.]]) ->  | B68: =IF(Table1[[#This Row],[Employee Name]]="","",Table1[[#This Row],[Employee Name]]) ->  | N68: =IFERROR(VLOOKUP(Table3[[#This Row],[Surrender Month]],DA_HRA_Rate,3,0),"") -> 
A69: =IF(Table1[[#This Row],[Sr.No.]]="","",Table1[[#This Row],[Sr.No.]]) ->  | B69: =IF(Table1[[#This Row],[Employee Name]]="","",Table1[[#This Row],[Employee Name]]) ->  | N69: =IFERROR(VLOOKUP(Table3[[#This Row],[Surrender Month]],DA_HRA_Rate,3,0),"") -> 
A70: =IF(Table1[[#This Row],[Sr.No.]]="","",Table1[[#This Row],[Sr.No.]]) ->  | B70: =IF(Table1[[#This Row],[Employee Name]]="","",Table1[[#This Row],[Employee Name]]) ->  | N70: =IFERROR(VLOOKUP(Table3[[#This Row],[Surrender Month]],DA_HRA_Rate,3,0),"") -> 
A71: =IF(Table1[[#This Row],[Sr.No.]]="","",Table1[[#This Row],[Sr.No.]]) ->  | B71: =IF(Table1[[#This Row],[Employee Name]]="","",Table1[[#This Row],[Employee Name]]) ->  | N71: =IFERROR(VLOOKUP(Table3[[#This Row],[Surrender Month]],DA_HRA_Rate,3,0),"") -> 
A72: =IF(Table1[[#This Row],[Sr.No.]]="","",Table1[[#This Row],[Sr.No.]]) ->  | B72: =IF(Table1[[#This Row],[Employee Name]]="","",Table1[[#This Row],[Employee Name]]) ->  | N72: =IFERROR(VLOOKUP(Table3[[#This Row],[Surrender Month]],DA_HRA_Rate,3,0),"") -> 
A73: =IF(Table1[[#This Row],[Sr.No.]]="","",Table1[[#This Row],[Sr.No.]]) ->  | B73: =IF(Table1[[#This Row],[Employee Name]]="","",Table1[[#This Row],[Employee Name]]) ->  | N73: =IFERROR(VLOOKUP(Table3[[#This Row],[Surrender Month]],DA_HRA_Rate,3,0),"") -> 
A74: =IF(Table1[[#This Row],[Sr.No.]]="","",Table1[[#This Row],[Sr.No.]]) ->  | B74: =IF(Table1[[#This Row],[Employee Name]]="","",Table1[[#This Row],[Employee Name]]) ->  | N74: =IFERROR(VLOOKUP(Table3[[#This Row],[Surrender Month]],DA_HRA_Rate,3,0),"") -> 
A75: =IF(Table1[[#This Row],[Sr.No.]]="","",Table1[[#This Row],[Sr.No.]]) ->  | B75: =IF(Table1[[#This Row],[Employee Name]]="","",Table1[[#This Row],[Employee Name]]) ->  | N75: =IFERROR(VLOOKUP(Table3[[#This Row],[Surrender Month]],DA_HRA_Rate,3,0),"") -> 
A76: =IF(Table1[[#This Row],[Sr.No.]]="","",Table1[[#This Row],[Sr.No.]]) ->  | B76: =IF(Table1[[#This Row],[Employee Name]]="","",Table1[[#This Row],[Employee Name]]) ->  | N76: =IFERROR(VLOOKUP(Table3[[#This Row],[Surrender Month]],DA_HRA_Rate,3,0),"") -> 
A77: =IF(Table1[[#This Row],[Sr.No.]]="","",Table1[[#This Row],[Sr.No.]]) ->  | B77: =IF(Table1[[#This Row],[Employee Name]]="","",Table1[[#This Row],[Employee Name]]) ->  | N77: =IFERROR(VLOOKUP(Table3[[#This Row],[Surrender Month]],DA_HRA_Rate,3,0),"") -> 
A78: =IF(Table1[[#This Row],[Sr.No.]]="","",Table1[[#This Row],[Sr.No.]]) ->  | B78: =IF(Table1[[#This Row],[Employee Name]]="","",Table1[[#This Row],[Employee Name]]) ->  | N78: =IFERROR(VLOOKUP(Table3[[#This Row],[Surrender Month]],DA_HRA_Rate,3,0),"") -> 
A79: =IF(Table1[[#This Row],[Sr.No.]]="","",Table1[[#This Row],[Sr.No.]]) ->  | B79: =IF(Table1[[#This Row],[Employee Name]]="","",Table1[[#This Row],[Employee Name]]) ->  | N79: =IFERROR(VLOOKUP(Table3[[#This Row],[Surrender Month]],DA_HRA_Rate,3,0),"") -> 
A80: =IF(Table1[[#This Row],[Sr.No.]]="","",Table1[[#This Row],[Sr.No.]]) ->  | B80: =IF(Table1[[#This Row],[Employee Name]]="","",Table1[[#This Row],[Employee Name]]) ->  | N80: =IFERROR(VLOOKUP(Table3[[#This Row],[Surrender Month]],DA_HRA_Rate,3,0),"") -> 
A81: =IF(Table1[[#This Row],[Sr.No.]]="","",Table1[[#This Row],[Sr.No.]]) ->  | B81: =IF(Table1[[#This Row],[Employee Name]]="","",Table1[[#This Row],[Employee Name]]) ->  | N81: =IFERROR(VLOOKUP(Table3[[#This Row],[Surrender Month]],DA_HRA_Rate,3,0),"") -> 
A82: =IF(Table1[[#This Row],[Sr.No.]]="","",Table1[[#This Row],[Sr.No.]]) ->  | B82: =IF(Table1[[#This Row],[Employee Name]]="","",Table1[[#This Row],[Employee Name]]) ->  | N82: =IFERROR(VLOOKUP(Table3[[#This Row],[Surrender Month]],DA_HRA_Rate,3,0),"") -> 
A83: =IF(Table1[[#This Row],[Sr.No.]]="","",Table1[[#This Row],[Sr.No.]]) ->  | B83: =IF(Table1[[#This Row],[Employee Name]]="","",Table1[[#This Row],[Employee Name]]) ->  | N83: =IFERROR(VLOOKUP(Table3[[#This Row],[Surrender Month]],DA_HRA_Rate,3,0),"") -> 
A84: =IF(Table1[[#This Row],[Sr.No.]]="","",Table1[[#This Row],[Sr.No.]]) ->  | B84: =IF(Table1[[#This Row],[Employee Name]]="","",Table1[[#This Row],[Employee Name]]) ->  | N84: =IFERROR(VLOOKUP(Table3[[#This Row],[Surrender Month]],DA_HRA_Rate,3,0),"") -> 
A85: =IF(Table1[[#This Row],[Sr.No.]]="","",Table1[[#This Row],[Sr.No.]]) ->  | B85: =IF(Table1[[#This Row],[Employee Name]]="","",Table1[[#This Row],[Employee Name]]) ->  | N85: =IFERROR(VLOOKUP(Table3[[#This Row],[Surrender Month]],DA_HRA_Rate,3,0),"") -> 
A86: =IF(Table1[[#This Row],[Sr.No.]]="","",Table1[[#This Row],[Sr.No.]]) ->  | B86: =IF(Table1[[#This Row],[Employee Name]]="","",Table1[[#This Row],[Employee Name]]) ->  | N86: =IFERROR(VLOOKUP(Table3[[#This Row],[Surrender Month]],DA_HRA_Rate,3,0),"") -> 
A87: =IF(Table1[[#This Row],[Sr.No.]]="","",Table1[[#This Row],[Sr.No.]]) ->  | B87: =IF(Table1[[#This Row],[Employee Name]]="","",Table1[[#This Row],[Employee Name]]) ->  | N87: =IFERROR(VLOOKUP(Table3[[#This Row],[Surrender Month]],DA_HRA_Rate,3,0),"") -> 
A88: =IF(Table1[[#This Row],[Sr.No.]]="","",Table1[[#This Row],[Sr.No.]]) ->  | B88: =IF(Table1[[#This Row],[Employee Name]]="","",Table1[[#This Row],[Employee Name]]) ->  | N88: =IFERROR(VLOOKUP(Table3[[#This Row],[Surrender Month]],DA_HRA_Rate,3,0),"") -> 
A89: =IF(Table1[[#This Row],[Sr.No.]]="","",Table1[[#This Row],[Sr.No.]]) ->  | B89: =IF(Table1[[#This Row],[Employee Name]]="","",Table1[[#This Row],[Employee Name]]) ->  | N89: =IFERROR(VLOOKUP(Table3[[#This Row],[Surrender Month]],DA_HRA_Rate,3,0),"") -> 
A90: =IF(Table1[[#This Row],[Sr.No.]]="","",Table1[[#This Row],[Sr.No.]]) ->  | B90: =IF(Table1[[#This Row],[Employee Name]]="","",Table1[[#This Row],[Employee Name]]) ->  | N90: =IFERROR(VLOOKUP(Table3[[#This Row],[Surrender Month]],DA_HRA_Rate,3,0),"") -> 
A91: =IF(Table1[[#This Row],[Sr.No.]]="","",Table1[[#This Row],[Sr.No.]]) ->  | B91: =IF(Table1[[#This Row],[Employee Name]]="","",Table1[[#This Row],[Employee Name]]) ->  | N91: =IFERROR(VLOOKUP(Table3[[#This Row],[Surrender Month]],DA_HRA_Rate,3,0),"") -> 
A92: =IF(Table1[[#This Row],[Sr.No.]]="","",Table1[[#This Row],[Sr.No.]]) ->  | B92: =IF(Table1[[#This Row],[Employee Name]]="","",Table1[[#This Row],[Employee Name]]) ->  | N92: =IFERROR(VLOOKUP(Table3[[#This Row],[Surrender Month]],DA_HRA_Rate,3,0),"") -> 
A93: =IF(Table1[[#This Row],[Sr.No.]]="","",Table1[[#This Row],[Sr.No.]]) ->  | B93: =IF(Table1[[#This Row],[Employee Name]]="","",Table1[[#This Row],[Employee Name]]) ->  | N93: =IFERROR(VLOOKUP(Table3[[#This Row],[Surrender Month]],DA_HRA_Rate,3,0),"") -> 
A94: =IF(Table1[[#This Row],[Sr.No.]]="","",Table1[[#This Row],[Sr.No.]]) ->  | B94: =IF(Table1[[#This Row],[Employee Name]]="","",Table1[[#This Row],[Employee Name]]) ->  | N94: =IFERROR(VLOOKUP(Table3[[#This Row],[Surrender Month]],DA_HRA_Rate,3,0),"") -> 
A95: =IF(Table1[[#This Row],[Sr.No.]]="","",Table1[[#This Row],[Sr.No.]]) ->  | B95: =IF(Table1[[#This Row],[Employee Name]]="","",Table1[[#This Row],[Employee Name]]) ->  | N95: =IFERROR(VLOOKUP(Table3[[#This Row],[Surrender Month]],DA_HRA_Rate,3,0),"") -> 
A96: =IF(Table1[[#This Row],[Sr.No.]]="","",Table1[[#This Row],[Sr.No.]]) ->  | B96: =IF(Table1[[#This Row],[Employee Name]]="","",Table1[[#This Row],[Employee Name]]) ->  | N96: =IFERROR(VLOOKUP(Table3[[#This Row],[Surrender Month]],DA_HRA_Rate,3,0),"") -> 
A97: =IF(Table1[[#This Row],[Sr.No.]]="","",Table1[[#This Row],[Sr.No.]]) ->  | B97: =IF(Table1[[#This Row],[Employee Name]]="","",Table1[[#This Row],[Employee Name]]) ->  | N97: =IFERROR(VLOOKUP(Table3[[#This Row],[Surrender Month]],DA_HRA_Rate,3,0),"") -> 
A98: =IF(Table1[[#This Row],[Sr.No.]]="","",Table1[[#This Row],[Sr.No.]]) ->  | B98: =IF(Table1[[#This Row],[Employee Name]]="","",Table1[[#This Row],[Employee Name]]) ->  | N98: =IFERROR(VLOOKUP(Table3[[#This Row],[Surrender Month]],DA_HRA_Rate,3,0),"") -> 
A99: =IF(Table1[[#This Row],[Sr.No.]]="","",Table1[[#This Row],[Sr.No.]]) ->  | B99: =IF(Table1[[#This Row],[Employee Name]]="","",Table1[[#This Row],[Employee Name]]) ->  | N99: =IFERROR(VLOOKUP(Table3[[#This Row],[Surrender Month]],DA_HRA_Rate,3,0),"") -> 
A100: =IF(Table1[[#This Row],[Sr.No.]]="","",Table1[[#This Row],[Sr.No.]]) ->  | B100: =IF(Table1[[#This Row],[Employee Name]]="","",Table1[[#This Row],[Employee Name]]) ->  | N100: =IFERROR(VLOOKUP(Table3[[#This Row],[Surrender Month]],DA_HRA_Rate,3,0),"") -> 
A101: =IF(Table1[[#This Row],[Sr.No.]]="","",Table1[[#This Row],[Sr.No.]]) ->  | B101: =IF(Table1[[#This Row],[Employee Name]]="","",Table1[[#This Row],[Employee Name]]) ->  | N101: =IFERROR(VLOOKUP(Table3[[#This Row],[Surrender Month]],DA_HRA_Rate,3,0),"") -> 
A102: =IF(Table1[[#This Row],[Sr.No.]]="","",Table1[[#This Row],[Sr.No.]]) ->  | B102: =IF(Table1[[#This Row],[Employee Name]]="","",Table1[[#This Row],[Employee Name]]) ->  | N102: =IFERROR(VLOOKUP(Table3[[#This Row],[Surrender Month]],DA_HRA_Rate,3,0),"") -> 
A103: =IF(Table1[[#This Row],[Sr.No.]]="","",Table1[[#This Row],[Sr.No.]]) ->  | B103: =IF(Table1[[#This Row],[Employee Name]]="","",Table1[[#This Row],[Employee Name]]) ->  | N103: =IFERROR(VLOOKUP(Table3[[#This Row],[Surrender Month]],DA_HRA_Rate,3,0),"") -> 
A104: =IF(Table1[[#This Row],[Sr.No.]]="","",Table1[[#This Row],[Sr.No.]]) ->  | B104: =IF(Table1[[#This Row],[Employee Name]]="","",Table1[[#This Row],[Employee Name]]) ->  | N104: =IFERROR(VLOOKUP(Table3[[#This Row],[Surrender Month]],DA_HRA_Rate,3,0),"") -> 
A105: =IF(Table1[[#This Row],[Sr.No.]]="","",Table1[[#This Row],[Sr.No.]]) ->  | B105: =IF(Table1[[#This Row],[Employee Name]]="","",Table1[[#This Row],[Employee Name]]) ->  | N105: =IFERROR(VLOOKUP(Table3[[#This Row],[Surrender Month]],DA_HRA_Rate,3,0),"") -> 
A106: =IF(Table1[[#This Row],[Sr.No.]]="","",Table1[[#This Row],[Sr.No.]]) ->  | B106: =IF(Table1[[#This Row],[Employee Name]]="","",Table1[[#This Row],[Employee Name]]) ->  | N106: =IFERROR(VLOOKUP(Table3[[#This Row],[Surrender Month]],DA_HRA_Rate,3,0),"") -> 
A107: =IF(Table1[[#This Row],[Sr.No.]]="","",Table1[[#This Row],[Sr.No.]]) ->  | B107: =IF(Table1[[#This Row],[Employee Name]]="","",Table1[[#This Row],[Employee Name]]) ->  | N107: =IFERROR(VLOOKUP(Table3[[#This Row],[Surrender Month]],DA_HRA_Rate,3,0),"") -> 
A108: =IF(Table1[[#This Row],[Sr.No.]]="","",Table1[[#This Row],[Sr.No.]]) ->  | B108: =IF(Table1[[#This Row],[Employee Name]]="","",Table1[[#This Row],[Employee Name]]) ->  | N108: =IFERROR(VLOOKUP(Table3[[#This Row],[Surrender Month]],DA_HRA_Rate,3,0),"") -> 
A109: =IF(Table1[[#This Row],[Sr.No.]]="","",Table1[[#This Row],[Sr.No.]]) ->  | B109: =IF(Table1[[#This Row],[Employee Name]]="","",Table1[[#This Row],[Employee Name]]) ->  | N109: =IFERROR(VLOOKUP(Table3[[#This Row],[Surrender Month]],DA_HRA_Rate,3,0),"") -> 
A110: =IF(Table1[[#This Row],[Sr.No.]]="","",Table1[[#This Row],[Sr.No.]]) ->  | B110: =IF(Table1[[#This Row],[Employee Name]]="","",Table1[[#This Row],[Employee Name]]) ->  | N110: =IFERROR(VLOOKUP(Table3[[#This Row],[Surrender Month]],DA_HRA_Rate,3,0),"") -> 
A111: =IF(Table1[[#This Row],[Sr.No.]]="","",Table1[[#This Row],[Sr.No.]]) ->  | B111: =IF(Table1[[#This Row],[Employee Name]]="","",Table1[[#This Row],[Employee Name]]) ->  | N111: =IFERROR(VLOOKUP(Table3[[#This Row],[Surrender Month]],DA_HRA_Rate,3,0),"") -> 
A112: =IF(Table1[[#This Row],[Sr.No.]]="","",Table1[[#This Row],[Sr.No.]]) ->  | B112: =IF(Table1[[#This Row],[Employee Name]]="","",Table1[[#This Row],[Employee Name]]) ->  | N112: =IFERROR(VLOOKUP(Table3[[#This Row],[Surrender Month]],DA_HRA_Rate,3,0),"") -> 
A113: =IF(Table1[[#This Row],[Sr.No.]]="","",Table1[[#This Row],[Sr.No.]]) ->  | B113: =IF(Table1[[#This Row],[Employee Name]]="","",Table1[[#This Row],[Employee Name]]) ->  | N113: =IFERROR(VLOOKUP(Table3[[#This Row],[Surrender Month]],DA_HRA_Rate,3,0),"") -> 
A114: =IF(Table1[[#This Row],[Sr.No.]]="","",Table1[[#This Row],[Sr.No.]]) ->  | B114: =IF(Table1[[#This Row],[Employee Name]]="","",Table1[[#This Row],[Employee Name]]) ->  | N114: =IFERROR(VLOOKUP(Table3[[#This Row],[Surrender Month]],DA_HRA_Rate,3,0),"") -> 
A115: =IF(Table1[[#This Row],[Sr.No.]]="","",Table1[[#This Row],[Sr.No.]]) ->  | B115: =IF(Table1[[#This Row],[Employee Name]]="","",Table1[[#This Row],[Employee Name]]) ->  | N115: =IFERROR(VLOOKUP(Table3[[#This Row],[Surrender Month]],DA_HRA_Rate,3,0),"") -> 
A116: =IF(Table1[[#This Row],[Sr.No.]]="","",Table1[[#This Row],[Sr.No.]]) ->  | B116: =IF(Table1[[#This Row],[Employee Name]]="","",Table1[[#This Row],[Employee Name]]) ->  | N116: =IFERROR(VLOOKUP(Table3[[#This Row],[Surrender Month]],DA_HRA_Rate,3,0),"") -> 
A117: =IF(Table1[[#This Row],[Sr.No.]]="","",Table1[[#This Row],[Sr.No.]]) ->  | B117: =IF(Table1[[#This Row],[Employee Name]]="","",Table1[[#This Row],[Employee Name]]) ->  | N117: =IFERROR(VLOOKUP(Table3[[#This Row],[Surrender Month]],DA_HRA_Rate,3,0),"") -> 
A118: =IF(Table1[[#This Row],[Sr.No.]]="","",Table1[[#This Row],[Sr.No.]]) ->  | B118: =IF(Table1[[#This Row],[Employee Name]]="","",Table1[[#This Row],[Employee Name]]) ->  | N118: =IFERROR(VLOOKUP(Table3[[#This Row],[Surrender Month]],DA_HRA_Rate,3,0),"") -> 
A119: =IF(Table1[[#This Row],[Sr.No.]]="","",Table1[[#This Row],[Sr.No.]]) ->  | B119: =IF(Table1[[#This Row],[Employee Name]]="","",Table1[[#This Row],[Employee Name]]) ->  | N119: =IFERROR(VLOOKUP(Table3[[#This Row],[Surrender Month]],DA_HRA_Rate,3,0),"") -> 
A120: =IF(Table1[[#This Row],[Sr.No.]]="","",Table1[[#This Row],[Sr.No.]]) ->  | B120: =IF(Table1[[#This Row],[Employee Name]]="","",Table1[[#This Row],[Employee Name]]) ->  | N120: =IFERROR(VLOOKUP(Table3[[#This Row],[Surrender Month]],DA_HRA_Rate,3,0),"") -> 
A121: =IF(Table1[[#This Row],[Sr.No.]]="","",Table1[[#This Row],[Sr.No.]]) ->  | B121: =IF(Table1[[#This Row],[Employee Name]]="","",Table1[[#This Row],[Employee Name]]) ->  | N121: =IFERROR(VLOOKUP(Table3[[#This Row],[Surrender Month]],DA_HRA_Rate,3,0),"") -> 
A122: =IF(Table1[[#This Row],[Sr.No.]]="","",Table1[[#This Row],[Sr.No.]]) ->  | B122: =IF(Table1[[#This Row],[Employee Name]]="","",Table1[[#This Row],[Employee Name]]) ->  | N122: =IFERROR(VLOOKUP(Table3[[#This Row],[Surrender Month]],DA_HRA_Rate,3,0),"") -> 
A123: =IF(Table1[[#This Row],[Sr.No.]]="","",Table1[[#This Row],[Sr.No.]]) ->  | B123: =IF(Table1[[#This Row],[Employee Name]]="","",Table1[[#This Row],[Employee Name]]) ->  | N123: =IFERROR(VLOOKUP(Table3[[#This Row],[Surrender Month]],DA_HRA_Rate,3,0),"") -> 
A124: =IF(Table1[[#This Row],[Sr.No.]]="","",Table1[[#This Row],[Sr.No.]]) ->  | B124: =IF(Table1[[#This Row],[Employee Name]]="","",Table1[[#This Row],[Employee Name]]) ->  | N124: =IFERROR(VLOOKUP(Table3[[#This Row],[Surrender Month]],DA_HRA_Rate,3,0),"") -> 
A125: =IF(Table1[[#This Row],[Sr.No.]]="","",Table1[[#This Row],[Sr.No.]]) ->  | B125: =IF(Table1[[#This Row],[Employee Name]]="","",Table1[[#This Row],[Employee Name]]) ->  | N125: =IFERROR(VLOOKUP(Table3[[#This Row],[Surrender Month]],DA_HRA_Rate,3,0),"") -> 
A126: =IF(Table1[[#This Row],[Sr.No.]]="","",Table1[[#This Row],[Sr.No.]]) ->  | B126: =IF(Table1[[#This Row],[Employee Name]]="","",Table1[[#This Row],[Employee Name]]) ->  | N126: =IFERROR(VLOOKUP(Table3[[#This Row],[Surrender Month]],DA_HRA_Rate,3,0),"") -> 
A127: =IF(Table1[[#This Row],[Sr.No.]]="","",Table1[[#This Row],[Sr.No.]]) ->  | B127: =IF(Table1[[#This Row],[Employee Name]]="","",Table1[[#This Row],[Employee Name]]) ->  | N127: =IFERROR(VLOOKUP(Table3[[#This Row],[Surrender Month]],DA_HRA_Rate,3,0),"") -> 
A128: =IF(Table1[[#This Row],[Sr.No.]]="","",Table1[[#This Row],[Sr.No.]]) ->  | B128: =IF(Table1[[#This Row],[Employee Name]]="","",Table1[[#This Row],[Employee Name]]) ->  | N128: =IFERROR(VLOOKUP(Table3[[#This Row],[Surrender Month]],DA_HRA_Rate,3,0),"") -> 
A129: =IF(Table1[[#This Row],[Sr.No.]]="","",Table1[[#This Row],[Sr.No.]]) ->  | B129: =IF(Table1[[#This Row],[Employee Name]]="","",Table1[[#This Row],[Employee Name]]) ->  | N129: =IFERROR(VLOOKUP(Table3[[#This Row],[Surrender Month]],DA_HRA_Rate,3,0),"") -> 
A130: =IF(Table1[[#This Row],[Sr.No.]]="","",Table1[[#This Row],[Sr.No.]]) ->  | B130: =IF(Table1[[#This Row],[Employee Name]]="","",Table1[[#This Row],[Employee Name]]) ->  | N130: =IFERROR(VLOOKUP(Table3[[#This Row],[Surrender Month]],DA_HRA_Rate,3,0),"") -> 
A131: =IF(Table1[[#This Row],[Sr.No.]]="","",Table1[[#This Row],[Sr.No.]]) ->  | B131: =IF(Table1[[#This Row],[Employee Name]]="","",Table1[[#This Row],[Employee Name]]) ->  | N131: =IFERROR(VLOOKUP(Table3[[#This Row],[Surrender Month]],DA_HRA_Rate,3,0),"") -> 
A132: =IF(Table1[[#This Row],[Sr.No.]]="","",Table1[[#This Row],[Sr.No.]]) ->  | B132: =IF(Table1[[#This Row],[Employee Name]]="","",Table1[[#This Row],[Employee Name]]) ->  | N132: =IFERROR(VLOOKUP(Table3[[#This Row],[Surrender Month]],DA_HRA_Rate,3,0),"") -> 
A133: =IF(Table1[[#This Row],[Sr.No.]]="","",Table1[[#This Row],[Sr.No.]]) ->  | B133: =IF(Table1[[#This Row],[Employee Name]]="","",Table1[[#This Row],[Employee Name]]) ->  | N133: =IFERROR(VLOOKUP(Table3[[#This Row],[Surrender Month]],DA_HRA_Rate,3,0),"") -> 
A134: =IF(Table1[[#This Row],[Sr.No.]]="","",Table1[[#This Row],[Sr.No.]]) ->  | B134: =IF(Table1[[#This Row],[Employee Name]]="","",Table1[[#This Row],[Employee Name]]) ->  | N134: =IFERROR(VLOOKUP(Table3[[#This Row],[Surrender Month]],DA_HRA_Rate,3,0),"") -> 
A135: =IF(Table1[[#This Row],[Sr.No.]]="","",Table1[[#This Row],[Sr.No.]]) ->  | B135: =IF(Table1[[#This Row],[Employee Name]]="","",Table1[[#This Row],[Employee Name]]) ->  | N135: =IFERROR(VLOOKUP(Table3[[#This Row],[Surrender Month]],DA_HRA_Rate,3,0),"") -> 
A136: =IF(Table1[[#This Row],[Sr.No.]]="","",Table1[[#This Row],[Sr.No.]]) ->  | B136: =IF(Table1[[#This Row],[Employee Name]]="","",Table1[[#This Row],[Employee Name]]) ->  | N136: =IFERROR(VLOOKUP(Table3[[#This Row],[Surrender Month]],DA_HRA_Rate,3,0),"") -> 
A137: =IF(Table1[[#This Row],[Sr.No.]]="","",Table1[[#This Row],[Sr.No.]]) ->  | B137: =IF(Table1[[#This Row],[Employee Name]]="","",Table1[[#This Row],[Employee Name]]) ->  | N137: =IFERROR(VLOOKUP(Table3[[#This Row],[Surrender Month]],DA_HRA_Rate,3,0),"") -> 
A138: =IF(Table1[[#This Row],[Sr.No.]]="","",Table1[[#This Row],[Sr.No.]]) ->  | B138: =IF(Table1[[#This Row],[Employee Name]]="","",Table1[[#This Row],[Employee Name]]) ->  | N138: =IFERROR(VLOOKUP(Table3[[#This Row],[Surrender Month]],DA_HRA_Rate,3,0),"") -> 
A139: =IF(Table1[[#This Row],[Sr.No.]]="","",Table1[[#This Row],[Sr.No.]]) ->  | B139: =IF(Table1[[#This Row],[Employee Name]]="","",Table1[[#This Row],[Employee Name]]) ->  | N139: =IFERROR(VLOOKUP(Table3[[#This Row],[Surrender Month]],DA_HRA_Rate,3,0),"") -> 
A140: =IF(Table1[[#This Row],[Sr.No.]]="","",Table1[[#This Row],[Sr.No.]]) ->  | B140: =IF(Table1[[#This Row],[Employee Name]]="","",Table1[[#This Row],[Employee Name]]) ->  | N140: =IFERROR(VLOOKUP(Table3[[#This Row],[Surrender Month]],DA_HRA_Rate,3,0),"") -> 
A141: =IF(Table1[[#This Row],[Sr.No.]]="","",Table1[[#This Row],[Sr.No.]]) ->  | B141: =IF(Table1[[#This Row],[Employee Name]]="","",Table1[[#This Row],[Employee Name]]) ->  | N141: =IFERROR(VLOOKUP(Table3[[#This Row],[Surrender Month]],DA_HRA_Rate,3,0),"") -> 
A142: =IF(Table1[[#This Row],[Sr.No.]]="","",Table1[[#This Row],[Sr.No.]]) ->  | B142: =IF(Table1[[#This Row],[Employee Name]]="","",Table1[[#This Row],[Employee Name]]) ->  | N142: =IFERROR(VLOOKUP(Table3[[#This Row],[Surrender Month]],DA_HRA_Rate,3,0),"") -> 
A143: =IF(Table1[[#This Row],[Sr.No.]]="","",Table1[[#This Row],[Sr.No.]]) ->  | B143: =IF(Table1[[#This Row],[Employee Name]]="","",Table1[[#This Row],[Employee Name]]) ->  | N143: =IFERROR(VLOOKUP(Table3[[#This Row],[Surrender Month]],DA_HRA_Rate,3,0),"") -> 
A144: =IF(Table1[[#This Row],[Sr.No.]]="","",Table1[[#This Row],[Sr.No.]]) ->  | B144: =IF(Table1[[#This Row],[Employee Name]]="","",Table1[[#This Row],[Employee Name]]) ->  | N144: =IFERROR(VLOOKUP(Table3[[#This Row],[Surrender Month]],DA_HRA_Rate,3,0),"") -> 
A145: =IF(Table1[[#This Row],[Sr.No.]]="","",Table1[[#This Row],[Sr.No.]]) ->  | B145: =IF(Table1[[#This Row],[Employee Name]]="","",Table1[[#This Row],[Employee Name]]) ->  | N145: =IFERROR(VLOOKUP(Table3[[#This Row],[Surrender Month]],DA_HRA_Rate,3,0),"") -> 
A146: =IF(Table1[[#This Row],[Sr.No.]]="","",Table1[[#This Row],[Sr.No.]]) ->  | B146: =IF(Table1[[#This Row],[Employee Name]]="","",Table1[[#This Row],[Employee Name]]) ->  | N146: =IFERROR(VLOOKUP(Table3[[#This Row],[Surrender Month]],DA_HRA_Rate,3,0),"") -> 
A147: =IF(Table1[[#This Row],[Sr.No.]]="","",Table1[[#This Row],[Sr.No.]]) ->  | B147: =IF(Table1[[#This Row],[Employee Name]]="","",Table1[[#This Row],[Employee Name]]) ->  | N147: =IFERROR(VLOOKUP(Table3[[#This Row],[Surrender Month]],DA_HRA_Rate,3,0),"") -> 
A148: =IF(Table1[[#This Row],[Sr.No.]]="","",Table1[[#This Row],[Sr.No.]]) ->  | B148: =IF(Table1[[#This Row],[Employee Name]]="","",Table1[[#This Row],[Employee Name]]) ->  | N148: =IFERROR(VLOOKUP(Table3[[#This Row],[Surrender Month]],DA_HRA_Rate,3,0),"") -> 
A149: =IF(Table1[[#This Row],[Sr.No.]]="","",Table1[[#This Row],[Sr.No.]]) ->  | B149: =IF(Table1[[#This Row],[Employee Name]]="","",Table1[[#This Row],[Employee Name]]) ->  | N149: =IFERROR(VLOOKUP(Table3[[#This Row],[Surrender Month]],DA_HRA_Rate,3,0),"") -> 
A150: =IF(Table1[[#This Row],[Sr.No.]]="","",Table1[[#This Row],[Sr.No.]]) ->  | B150: =IF(Table1[[#This Row],[Employee Name]]="","",Table1[[#This Row],[Employee Name]]) ->  | N150: =IFERROR(VLOOKUP(Table3[[#This Row],[Surrender Month]],DA_HRA_Rate,3,0),"") -> 
A151: =IF(Table1[[#This Row],[Sr.No.]]="","",Table1[[#This Row],[Sr.No.]]) ->  | B151: =IF(Table1[[#This Row],[Employee Name]]="","",Table1[[#This Row],[Employee Name]]) ->  | N151: =IFERROR(VLOOKUP(Table3[[#This Row],[Surrender Month]],DA_HRA_Rate,3,0),"") -> 
A152: =IF(Table1[[#This Row],[Sr.No.]]="","",Table1[[#This Row],[Sr.No.]]) ->  | B152: =IF(Table1[[#This Row],[Employee Name]]="","",Table1[[#This Row],[Employee Name]]) ->  | N152: =IFERROR(VLOOKUP(Table3[[#This Row],[Surrender Month]],DA_HRA_Rate,3,0),"") -> 
A153: =IF(Table1[[#This Row],[Sr.No.]]="","",Table1[[#This Row],[Sr.No.]]) ->  | B153: =IF(Table1[[#This Row],[Employee Name]]="","",Table1[[#This Row],[Employee Name]]) ->  | N153: =IFERROR(VLOOKUP(Table3[[#This Row],[Surrender Month]],DA_HRA_Rate,3,0),"") -> 
A154: =IF(Table1[[#This Row],[Sr.No.]]="","",Table1[[#This Row],[Sr.No.]]) ->  | B154: =IF(Table1[[#This Row],[Employee Name]]="","",Table1[[#This Row],[Employee Name]]) ->  | N154: =IFERROR(VLOOKUP(Table3[[#This Row],[Surrender Month]],DA_HRA_Rate,3,0),"") -> 
A155: =IF(Table1[[#This Row],[Sr.No.]]="","",Table1[[#This Row],[Sr.No.]]) ->  | B155: =IF(Table1[[#This Row],[Employee Name]]="","",Table1[[#This Row],[Employee Name]]) ->  | N155: =IFERROR(VLOOKUP(Table3[[#This Row],[Surrender Month]],DA_HRA_Rate,3,0),"") -> 
A156: =IF(Table1[[#This Row],[Sr.No.]]="","",Table1[[#This Row],[Sr.No.]]) ->  | B156: =IF(Table1[[#This Row],[Employee Name]]="","",Table1[[#This Row],[Employee Name]]) ->  | N156: =IFERROR(VLOOKUP(Table3[[#This Row],[Surrender Month]],DA_HRA_Rate,3,0),"") -> 
A157: =IF(Table1[[#This Row],[Sr.No.]]="","",Table1[[#This Row],[Sr.No.]]) ->  | B157: =IF(Table1[[#This Row],[Employee Name]]="","",Table1[[#This Row],[Employee Name]]) ->  | N157: =IFERROR(VLOOKUP(Table3[[#This Row],[Surrender Month]],DA_HRA_Rate,3,0),"") -> 
A158: =IF(Table1[[#This Row],[Sr.No.]]="","",Table1[[#This Row],[Sr.No.]]) ->  | B158: =IF(Table1[[#This Row],[Employee Name]]="","",Table1[[#This Row],[Employee Name]]) ->  | N158: =IFERROR(VLOOKUP(Table3[[#This Row],[Surrender Month]],DA_HRA_Rate,3,0),"") -> 
A159: =IF(Table1[[#This Row],[Sr.No.]]="","",Table1[[#This Row],[Sr.No.]]) ->  | B159: =IF(Table1[[#This Row],[Employee Name]]="","",Table1[[#This Row],[Employee Name]]) ->  | N159: =IFERROR(VLOOKUP(Table3[[#This Row],[Surrender Month]],DA_HRA_Rate,3,0),"") -> 
A160: =IF(Table1[[#This Row],[Sr.No.]]="","",Table1[[#This Row],[Sr.No.]]) ->  | B160: =IF(Table1[[#This Row],[Employee Name]]="","",Table1[[#This Row],[Employee Name]]) ->  | N160: =IFERROR(VLOOKUP(Table3[[#This Row],[Surrender Month]],DA_HRA_Rate,3,0),"") -> 
A161: =IF(Table1[[#This Row],[Sr.No.]]="","",Table1[[#This Row],[Sr.No.]]) ->  | B161: =IF(Table1[[#This Row],[Employee Name]]="","",Table1[[#This Row],[Employee Name]]) ->  | N161: =IFERROR(VLOOKUP(Table3[[#This Row],[Surrender Month]],DA_HRA_Rate,3,0),"") -> 
A162: =IF(Table1[[#This Row],[Sr.No.]]="","",Table1[[#This Row],[Sr.No.]]) ->  | B162: =IF(Table1[[#This Row],[Employee Name]]="","",Table1[[#This Row],[Employee Name]]) ->  | N162: =IFERROR(VLOOKUP(Table3[[#This Row],[Surrender Month]],DA_HRA_Rate,3,0),"") -> 
A163: =IF(Table1[[#This Row],[Sr.No.]]="","",Table1[[#This Row],[Sr.No.]]) ->  | B163: =IF(Table1[[#This Row],[Employee Name]]="","",Table1[[#This Row],[Employee Name]]) ->  | N163: =IFERROR(VLOOKUP(Table3[[#This Row],[Surrender Month]],DA_HRA_Rate,3,0),"") -> 
A164: =IF(Table1[[#This Row],[Sr.No.]]="","",Table1[[#This Row],[Sr.No.]]) ->  | B164: =IF(Table1[[#This Row],[Employee Name]]="","",Table1[[#This Row],[Employee Name]]) ->  | N164: =IFERROR(VLOOKUP(Table3[[#This Row],[Surrender Month]],DA_HRA_Rate,3,0),"") -> 
A165: =IF(Table1[[#This Row],[Sr.No.]]="","",Table1[[#This Row],[Sr.No.]]) ->  | B165: =IF(Table1[[#This Row],[Employee Name]]="","",Table1[[#This Row],[Employee Name]]) ->  | N165: =IFERROR(VLOOKUP(Table3[[#This Row],[Surrender Month]],DA_HRA_Rate,3,0),"") -> 
A166: =IF(Table1[[#This Row],[Sr.No.]]="","",Table1[[#This Row],[Sr.No.]]) ->  | B166: =IF(Table1[[#This Row],[Employee Name]]="","",Table1[[#This Row],[Employee Name]]) ->  | N166: =IFERROR(VLOOKUP(Table3[[#This Row],[Surrender Month]],DA_HRA_Rate,3,0),"") -> 
A167: =IF(Table1[[#This Row],[Sr.No.]]="","",Table1[[#This Row],[Sr.No.]]) ->  | B167: =IF(Table1[[#This Row],[Employee Name]]="","",Table1[[#This Row],[Employee Name]]) ->  | N167: =IFERROR(VLOOKUP(Table3[[#This Row],[Surrender Month]],DA_HRA_Rate,3,0),"") -> 
A168: =IF(Table1[[#This Row],[Sr.No.]]="","",Table1[[#This Row],[Sr.No.]]) ->  | B168: =IF(Table1[[#This Row],[Employee Name]]="","",Table1[[#This Row],[Employee Name]]) ->  | N168: =IFERROR(VLOOKUP(Table3[[#This Row],[Surrender Month]],DA_HRA_Rate,3,0),"") -> 
A169: =IF(Table1[[#This Row],[Sr.No.]]="","",Table1[[#This Row],[Sr.No.]]) ->  | B169: =IF(Table1[[#This Row],[Employee Name]]="","",Table1[[#This Row],[Employee Name]]) ->  | N169: =IFERROR(VLOOKUP(Table3[[#This Row],[Surrender Month]],DA_HRA_Rate,3,0),"") -> 
A170: =IF(Table1[[#This Row],[Sr.No.]]="","",Table1[[#This Row],[Sr.No.]]) ->  | B170: =IF(Table1[[#This Row],[Employee Name]]="","",Table1[[#This Row],[Employee Name]]) ->  | N170: =IFERROR(VLOOKUP(Table3[[#This Row],[Surrender Month]],DA_HRA_Rate,3,0),"") -> 
A171: =IF(Table1[[#This Row],[Sr.No.]]="","",Table1[[#This Row],[Sr.No.]]) ->  | B171: =IF(Table1[[#This Row],[Employee Name]]="","",Table1[[#This Row],[Employee Name]]) ->  | N171: =IFERROR(VLOOKUP(Table3[[#This Row],[Surrender Month]],DA_HRA_Rate,3,0),"") -> 
A172: =IF(Table1[[#This Row],[Sr.No.]]="","",Table1[[#This Row],[Sr.No.]]) ->  | B172: =IF(Table1[[#This Row],[Employee Name]]="","",Table1[[#This Row],[Employee Name]]) ->  | N172: =IFERROR(VLOOKUP(Table3[[#This Row],[Surrender Month]],DA_HRA_Rate,3,0),"") -> 
A173: =IF(Table1[[#This Row],[Sr.No.]]="","",Table1[[#This Row],[Sr.No.]]) ->  | B173: =IF(Table1[[#This Row],[Employee Name]]="","",Table1[[#This Row],[Employee Name]]) ->  | N173: =IFERROR(VLOOKUP(Table3[[#This Row],[Surrender Month]],DA_HRA_Rate,3,0),"") -> 
A174: =IF(Table1[[#This Row],[Sr.No.]]="","",Table1[[#This Row],[Sr.No.]]) ->  | B174: =IF(Table1[[#This Row],[Employee Name]]="","",Table1[[#This Row],[Employee Name]]) ->  | N174: =IFERROR(VLOOKUP(Table3[[#This Row],[Surrender Month]],DA_HRA_Rate,3,0),"") -> 
A175: =IF(Table1[[#This Row],[Sr.No.]]="","",Table1[[#This Row],[Sr.No.]]) ->  | B175: =IF(Table1[[#This Row],[Employee Name]]="","",Table1[[#This Row],[Employee Name]]) ->  | N175: =IFERROR(VLOOKUP(Table3[[#This Row],[Surrender Month]],DA_HRA_Rate,3,0),"") -> 
A176: =IF(Table1[[#This Row],[Sr.No.]]="","",Table1[[#This Row],[Sr.No.]]) ->  | B176: =IF(Table1[[#This Row],[Employee Name]]="","",Table1[[#This Row],[Employee Name]]) ->  | N176: =IFERROR(VLOOKUP(Table3[[#This Row],[Surrender Month]],DA_HRA_Rate,3,0),"") -> 
A177: =IF(Table1[[#This Row],[Sr.No.]]="","",Table1[[#This Row],[Sr.No.]]) ->  | B177: =IF(Table1[[#This Row],[Employee Name]]="","",Table1[[#This Row],[Employee Name]]) ->  | N177: =IFERROR(VLOOKUP(Table3[[#This Row],[Surrender Month]],DA_HRA_Rate,3,0),"") -> 
A178: =IF(Table1[[#This Row],[Sr.No.]]="","",Table1[[#This Row],[Sr.No.]]) ->  | B178: =IF(Table1[[#This Row],[Employee Name]]="","",Table1[[#This Row],[Employee Name]]) ->  | N178: =IFERROR(VLOOKUP(Table3[[#This Row],[Surrender Month]],DA_HRA_Rate,3,0),"") -> 
A179: =IF(Table1[[#This Row],[Sr.No.]]="","",Table1[[#This Row],[Sr.No.]]) ->  | B179: =IF(Table1[[#This Row],[Employee Name]]="","",Table1[[#This Row],[Employee Name]]) ->  | N179: =IFERROR(VLOOKUP(Table3[[#This Row],[Surrender Month]],DA_HRA_Rate,3,0),"") -> 
A180: =IF(Table1[[#This Row],[Sr.No.]]="","",Table1[[#This Row],[Sr.No.]]) ->  | B180: =IF(Table1[[#This Row],[Employee Name]]="","",Table1[[#This Row],[Employee Name]]) ->  | N180: =IFERROR(VLOOKUP(Table3[[#This Row],[Surrender Month]],DA_HRA_Rate,3,0),"") -> 
A181: =IF(Table1[[#This Row],[Sr.No.]]="","",Table1[[#This Row],[Sr.No.]]) ->  | B181: =IF(Table1[[#This Row],[Employee Name]]="","",Table1[[#This Row],[Employee Name]]) ->  | N181: =IFERROR(VLOOKUP(Table3[[#This Row],[Surrender Month]],DA_HRA_Rate,3,0),"") -> 
A182: =IF(Table1[[#This Row],[Sr.No.]]="","",Table1[[#This Row],[Sr.No.]]) ->  | B182: =IF(Table1[[#This Row],[Employee Name]]="","",Table1[[#This Row],[Employee Name]]) ->  | N182: =IFERROR(VLOOKUP(Table3[[#This Row],[Surrender Month]],DA_HRA_Rate,3,0),"") -> 

Sheet Deductions
A1: =Master!$C$1 -> GSSS Deogarh
A2: Deductions Detail Employee wise
A4: Sr.No | B4: Employee Name | C4: GPF | D4: SIP | E4: RPMF | F4: CM Corona | G4: LIC | H4: GPF Loan | I4: SIL | J4: Itax | K4: Other Ded.
A5: =IF(Table1[[#This Row],[Sr.No.]]="","",Table1[[#This Row],[Sr.No.]]) -> 1 | B5: =IF(Table1[[#This Row],[Employee Name]]="","",Table1[[#This Row],[Employee Name]]) -> Ashwini Kumar | D5: 3000 | J5: 100
A6: =IF(Table1[[#This Row],[Sr.No.]]="","",Table1[[#This Row],[Sr.No.]]) ->  | B6: =IF(Table1[[#This Row],[Employee Name]]="","",Table1[[#This Row],[Employee Name]]) -> 
A7: =IF(Table1[[#This Row],[Sr.No.]]="","",Table1[[#This Row],[Sr.No.]]) ->  | B7: =IF(Table1[[#This Row],[Employee Name]]="","",Table1[[#This Row],[Employee Name]]) -> 
A8: =IF(Table1[[#This Row],[Sr.No.]]="","",Table1[[#This Row],[Sr.No.]]) ->  | B8: =IF(Table1[[#This Row],[Employee Name]]="","",Table1[[#This Row],[Employee Name]]) -> 
A9: =IF(Table1[[#This Row],[Sr.No.]]="","",Table1[[#This Row],[Sr.No.]]) ->  | B9: =IF(Table1[[#This Row],[Employee Name]]="","",Table1[[#This Row],[Employee Name]]) -> 
A10: =IF(Table1[[#This Row],[Sr.No.]]="","",Table1[[#This Row],[Sr.No.]]) ->  | B10: =IF(Table1[[#This Row],[Employee Name]]="","",Table1[[#This Row],[Employee Name]]) -> 
A11: =IF(Table1[[#This Row],[Sr.No.]]="","",Table1[[#This Row],[Sr.No.]]) ->  | B11: =IF(Table1[[#This Row],[Employee Name]]="","",Table1[[#This Row],[Employee Name]]) -> 
A12: =IF(Table1[[#This Row],[Sr.No.]]="","",Table1[[#This Row],[Sr.No.]]) ->  | B12: =IF(Table1[[#This Row],[Employee Name]]="","",Table1[[#This Row],[Employee Name]]) -> 
A13: =IF(Table1[[#This Row],[Sr.No.]]="","",Table1[[#This Row],[Sr.No.]]) ->  | B13: =IF(Table1[[#This Row],[Employee Name]]="","",Table1[[#This Row],[Employee Name]]) -> 
A14: =IF(Table1[[#This Row],[Sr.No.]]="","",Table1[[#This Row],[Sr.No.]]) ->  | B14: =IF(Table1[[#This Row],[Employee Name]]="","",Table1[[#This Row],[Employee Name]]) -> 
A15: =IF(Table1[[#This Row],[Sr.No.]]="","",Table1[[#This Row],[Sr.No.]]) ->  | B15: =IF(Table1[[#This Row],[Employee Name]]="","",Table1[[#This Row],[Employee Name]]) -> 
A16: =IF(Table1[[#This Row],[Sr.No.]]="","",Table1[[#This Row],[Sr.No.]]) ->  | B16: =IF(Table1[[#This Row],[Employee Name]]="","",Table1[[#This Row],[Employee Name]]) -> 
A17: =IF(Table1[[#This Row],[Sr.No.]]="","",Table1[[#This Row],[Sr.No.]]) ->  | B17: =IF(Table1[[#This Row],[Employee Name]]="","",Table1[[#This Row],[Employee Name]]) -> 
A18: =IF(Table1[[#This Row],[Sr.No.]]="","",Table1[[#This Row],[Sr.No.]]) ->  | B18: =IF(Table1[[#This Row],[Employee Name]]="","",Table1[[#This Row],[Employee Name]]) -> 
A19: =IF(Table1[[#This Row],[Sr.No.]]="","",Table1[[#This Row],[Sr.No.]]) ->  | B19: =IF(Table1[[#This Row],[Employee Name]]="","",Table1[[#This Row],[Employee Name]]) -> 
A20: =IF(Table1[[#This Row],[Sr.No.]]="","",Table1[[#This Row],[Sr.No.]]) ->  | B20: =IF(Table1[[#This Row],[Employee Name]]="","",Table1[[#This Row],[Employee Name]]) -> 
A21: =IF(Table1[[#This Row],[Sr.No.]]="","",Table1[[#This Row],[Sr.No.]]) ->  | B21: =IF(Table1[[#This Row],[Employee Name]]="","",Table1[[#This Row],[Employee Name]]) -> 
A22: =IF(Table1[[#This Row],[Sr.No.]]="","",Table1[[#This Row],[Sr.No.]]) ->  | B22: =IF(Table1[[#This Row],[Employee Name]]="","",Table1[[#This Row],[Employee Name]]) -> 
A23: =IF(Table1[[#This Row],[Sr.No.]]="","",Table1[[#This Row],[Sr.No.]]) ->  | B23: =IF(Table1[[#This Row],[Employee Name]]="","",Table1[[#This Row],[Employee Name]]) -> 
A24: =IF(Table1[[#This Row],[Sr.No.]]="","",Table1[[#This Row],[Sr.No.]]) ->  | B24: =IF(Table1[[#This Row],[Employee Name]]="","",Table1[[#This Row],[Employee Name]]) -> 
A25: =IF(Table1[[#This Row],[Sr.No.]]="","",Table1[[#This Row],[Sr.No.]]) ->  | B25: =IF(Table1[[#This Row],[Employee Name]]="","",Table1[[#This Row],[Employee Name]]) -> 
A26: =IF(Table1[[#This Row],[Sr.No.]]="","",Table1[[#This Row],[Sr.No.]]) ->  | B26: =IF(Table1[[#This Row],[Employee Name]]="","",Table1[[#This Row],[Employee Name]]) -> 
A27: =IF(Table1[[#This Row],[Sr.No.]]="","",Table1[[#This Row],[Sr.No.]]) ->  | B27: =IF(Table1[[#This Row],[Employee Name]]="","",Table1[[#This Row],[Employee Name]]) -> 
A28: =IF(Table1[[#This Row],[Sr.No.]]="","",Table1[[#This Row],[Sr.No.]]) ->  | B28: =IF(Table1[[#This Row],[Employee Name]]="","",Table1[[#This Row],[Employee Name]]) -> 
A29: =IF(Table1[[#This Row],[Sr.No.]]="","",Table1[[#This Row],[Sr.No.]]) ->  | B29: =IF(Table1[[#This Row],[Employee Name]]="","",Table1[[#This Row],[Employee Name]]) -> 
A30: =IF(Table1[[#This Row],[Sr.No.]]="","",Table1[[#This Row],[Sr.No.]]) ->  | B30: =IF(Table1[[#This Row],[Employee Name]]="","",Table1[[#This Row],[Employee Name]]) -> 
A31: =IF(Table1[[#This Row],[Sr.No.]]="","",Table1[[#This Row],[Sr.No.]]) ->  | B31: =IF(Table1[[#This Row],[Employee Name]]="","",Table1[[#This Row],[Employee Name]]) -> 
A32: =IF(Table1[[#This Row],[Sr.No.]]="","",Table1[[#This Row],[Sr.No.]]) ->  | B32: =IF(Table1[[#This Row],[Employee Name]]="","",Table1[[#This Row],[Employee Name]]) -> 
A33: =IF(Table1[[#This Row],[Sr.No.]]="","",Table1[[#This Row],[Sr.No.]]) ->  | B33: =IF(Table1[[#This Row],[Employee Name]]="","",Table1[[#This Row],[Employee Name]]) -> 
A34: =IF(Table1[[#This Row],[Sr.No.]]="","",Table1[[#This Row],[Sr.No.]]) ->  | B34: =IF(Table1[[#This Row],[Employee Name]]="","",Table1[[#This Row],[Employee Name]]) -> 
A35: =IF(Table1[[#This Row],[Sr.No.]]="","",Table1[[#This Row],[Sr.No.]]) ->  | B35: =IF(Table1[[#This Row],[Employee Name]]="","",Table1[[#This Row],[Employee Name]]) -> 
A36: =IF(Table1[[#This Row],[Sr.No.]]="","",Table1[[#This Row],[Sr.No.]]) ->  | B36: =IF(Table1[[#This Row],[Employee Name]]="","",Table1[[#This Row],[Employee Name]]) -> 
A37: =IF(Table1[[#This Row],[Sr.No.]]="","",Table1[[#This Row],[Sr.No.]]) ->  | B37: =IF(Table1[[#This Row],[Employee Name]]="","",Table1[[#This Row],[Employee Name]]) -> 
A38: =IF(Table1[[#This Row],[Sr.No.]]="","",Table1[[#This Row],[Sr.No.]]) ->  | B38: =IF(Table1[[#This Row],[Employee Name]]="","",Table1[[#This Row],[Employee Name]]) -> 
A39: =IF(Table1[[#This Row],[Sr.No.]]="","",Table1[[#This Row],[Sr.No.]]) ->  | B39: =IF(Table1[[#This Row],[Employee Name]]="","",Table1[[#This Row],[Employee Name]]) -> 
A40: =IF(Table1[[#This Row],[Sr.No.]]="","",Table1[[#This Row],[Sr.No.]]) ->  | B40: =IF(Table1[[#This Row],[Employee Name]]="","",Table1[[#This Row],[Employee Name]]) -> 
A41: =IF(Table1[[#This Row],[Sr.No.]]="","",Table1[[#This Row],[Sr.No.]]) ->  | B41: =IF(Table1[[#This Row],[Employee Name]]="","",Table1[[#This Row],[Employee Name]]) -> 
A42: =IF(Table1[[#This Row],[Sr.No.]]="","",Table1[[#This Row],[Sr.No.]]) ->  | B42: =IF(Table1[[#This Row],[Employee Name]]="","",Table1[[#This Row],[Employee Name]]) -> 
A43: =IF(Table1[[#This Row],[Sr.No.]]="","",Table1[[#This Row],[Sr.No.]]) ->  | B43: =IF(Table1[[#This Row],[Employee Name]]="","",Table1[[#This Row],[Employee Name]]) -> 
A44: =IF(Table1[[#This Row],[Sr.No.]]="","",Table1[[#This Row],[Sr.No.]]) ->  | B44: =IF(Table1[[#This Row],[Employee Name]]="","",Table1[[#This Row],[Employee Name]]) -> 
A45: =IF(Table1[[#This Row],[Sr.No.]]="","",Table1[[#This Row],[Sr.No.]]) ->  | B45: =IF(Table1[[#This Row],[Employee Name]]="","",Table1[[#This Row],[Employee Name]]) -> 
A46: =IF(Table1[[#This Row],[Sr.No.]]="","",Table1[[#This Row],[Sr.No.]]) ->  | B46: =IF(Table1[[#This Row],[Employee Name]]="","",Table1[[#This Row],[Employee Name]]) -> 
A47: =IF(Table1[[#This Row],[Sr.No.]]="","",Table1[[#This Row],[Sr.No.]]) ->  | B47: =IF(Table1[[#This Row],[Employee Name]]="","",Table1[[#This Row],[Employee Name]]) -> 
A48: =IF(Table1[[#This Row],[Sr.No.]]="","",Table1[[#This Row],[Sr.No.]]) ->  | B48: =IF(Table1[[#This Row],[Employee Name]]="","",Table1[[#This Row],[Employee Name]]) -> 
A49: =IF(Table1[[#This Row],[Sr.No.]]="","",Table1[[#This Row],[Sr.No.]]) ->  | B49: =IF(Table1[[#This Row],[Employee Name]]="","",Table1[[#This Row],[Employee Name]]) -> 
A50: =IF(Table1[[#This Row],[Sr.No.]]="","",Table1[[#This Row],[Sr.No.]]) ->  | B50: =IF(Table1[[#This Row],[Employee Name]]="","",Table1[[#This Row],[Employee Name]]) -> 
A51: =IF(Table1[[#This Row],[Sr.No.]]="","",Table1[[#This Row],[Sr.No.]]) ->  | B51: =IF(Table1[[#This Row],[Employee Name]]="","",Table1[[#This Row],[Employee Name]]) -> 
A52: =IF(Table1[[#This Row],[Sr.No.]]="","",Table1[[#This Row],[Sr.No.]]) ->  | B52: =IF(Table1[[#This Row],[Employee Name]]="","",Table1[[#This Row],[Employee Name]]) -> 
A53: =IF(Table1[[#This Row],[Sr.No.]]="","",Table1[[#This Row],[Sr.No.]]) ->  | B53: =IF(Table1[[#This Row],[Employee Name]]="","",Table1[[#This Row],[Employee Name]]) -> 
A54: =IF(Table1[[#This Row],[Sr.No.]]="","",Table1[[#This Row],[Sr.No.]]) ->  | B54: =IF(Table1[[#This Row],[Employee Name]]="","",Table1[[#This Row],[Employee Name]]) -> 
A55: =IF(Table1[[#This Row],[Sr.No.]]="","",Table1[[#This Row],[Sr.No.]]) ->  | B55: =IF(Table1[[#This Row],[Employee Name]]="","",Table1[[#This Row],[Employee Name]]) -> 
A56: =IF(Table1[[#This Row],[Sr.No.]]="","",Table1[[#This Row],[Sr.No.]]) ->  | B56: =IF(Table1[[#This Row],[Employee Name]]="","",Table1[[#This Row],[Employee Name]]) -> 
A57: =IF(Table1[[#This Row],[Sr.No.]]="","",Table1[[#This Row],[Sr.No.]]) ->  | B57: =IF(Table1[[#This Row],[Employee Name]]="","",Table1[[#This Row],[Employee Name]]) -> 
A58: =IF(Table1[[#This Row],[Sr.No.]]="","",Table1[[#This Row],[Sr.No.]]) ->  | B58: =IF(Table1[[#This Row],[Employee Name]]="","",Table1[[#This Row],[Employee Name]]) -> 
A59: =IF(Table1[[#This Row],[Sr.No.]]="","",Table1[[#This Row],[Sr.No.]]) ->  | B59: =IF(Table1[[#This Row],[Employee Name]]="","",Table1[[#This Row],[Employee Name]]) -> 
A60: =IF(Table1[[#This Row],[Sr.No.]]="","",Table1[[#This Row],[Sr.No.]]) ->  | B60: =IF(Table1[[#This Row],[Employee Name]]="","",Table1[[#This Row],[Employee Name]]) -> 
A61: =IF(Table1[[#This Row],[Sr.No.]]="","",Table1[[#This Row],[Sr.No.]]) ->  | B61: =IF(Table1[[#This Row],[Employee Name]]="","",Table1[[#This Row],[Employee Name]]) -> 
A62: =IF(Table1[[#This Row],[Sr.No.]]="","",Table1[[#This Row],[Sr.No.]]) ->  | B62: =IF(Table1[[#This Row],[Employee Name]]="","",Table1[[#This Row],[Employee Name]]) -> 
A63: =IF(Table1[[#This Row],[Sr.No.]]="","",Table1[[#This Row],[Sr.No.]]) ->  | B63: =IF(Table1[[#This Row],[Employee Name]]="","",Table1[[#This Row],[Employee Name]]) -> 
A64: =IF(Table1[[#This Row],[Sr.No.]]="","",Table1[[#This Row],[Sr.No.]]) ->  | B64: =IF(Table1[[#This Row],[Employee Name]]="","",Table1[[#This Row],[Employee Name]]) -> 
A65: =IF(Table1[[#This Row],[Sr.No.]]="","",Table1[[#This Row],[Sr.No.]]) ->  | B65: =IF(Table1[[#This Row],[Employee Name]]="","",Table1[[#This Row],[Employee Name]]) -> 
A66: =IF(Table1[[#This Row],[Sr.No.]]="","",Table1[[#This Row],[Sr.No.]]) ->  | B66: =IF(Table1[[#This Row],[Employee Name]]="","",Table1[[#This Row],[Employee Name]]) -> 
A67: =IF(Table1[[#This Row],[Sr.No.]]="","",Table1[[#This Row],[Sr.No.]]) ->  | B67: =IF(Table1[[#This Row],[Employee Name]]="","",Table1[[#This Row],[Employee Name]]) -> 
A68: =IF(Table1[[#This Row],[Sr.No.]]="","",Table1[[#This Row],[Sr.No.]]) ->  | B68: =IF(Table1[[#This Row],[Employee Name]]="","",Table1[[#This Row],[Employee Name]]) -> 
A69: =IF(Table1[[#This Row],[Sr.No.]]="","",Table1[[#This Row],[Sr.No.]]) ->  | B69: =IF(Table1[[#This Row],[Employee Name]]="","",Table1[[#This Row],[Employee Name]]) -> 
A70: =IF(Table1[[#This Row],[Sr.No.]]="","",Table1[[#This Row],[Sr.No.]]) ->  | B70: =IF(Table1[[#This Row],[Employee Name]]="","",Table1[[#This Row],[Employee Name]]) -> 
A71: =IF(Table1[[#This Row],[Sr.No.]]="","",Table1[[#This Row],[Sr.No.]]) ->  | B71: =IF(Table1[[#This Row],[Employee Name]]="","",Table1[[#This Row],[Employee Name]]) -> 
A72: =IF(Table1[[#This Row],[Sr.No.]]="","",Table1[[#This Row],[Sr.No.]]) ->  | B72: =IF(Table1[[#This Row],[Employee Name]]="","",Table1[[#This Row],[Employee Name]]) -> 
A73: =IF(Table1[[#This Row],[Sr.No.]]="","",Table1[[#This Row],[Sr.No.]]) ->  | B73: =IF(Table1[[#This Row],[Employee Name]]="","",Table1[[#This Row],[Employee Name]]) -> 
A74: =IF(Table1[[#This Row],[Sr.No.]]="","",Table1[[#This Row],[Sr.No.]]) ->  | B74: =IF(Table1[[#This Row],[Employee Name]]="","",Table1[[#This Row],[Employee Name]]) -> 
A75: =IF(Table1[[#This Row],[Sr.No.]]="","",Table1[[#This Row],[Sr.No.]]) ->  | B75: =IF(Table1[[#This Row],[Employee Name]]="","",Table1[[#This Row],[Employee Name]]) -> 
A76: =IF(Table1[[#This Row],[Sr.No.]]="","",Table1[[#This Row],[Sr.No.]]) ->  | B76: =IF(Table1[[#This Row],[Employee Name]]="","",Table1[[#This Row],[Employee Name]]) -> 
A77: =IF(Table1[[#This Row],[Sr.No.]]="","",Table1[[#This Row],[Sr.No.]]) ->  | B77: =IF(Table1[[#This Row],[Employee Name]]="","",Table1[[#This Row],[Employee Name]]) -> 
A78: =IF(Table1[[#This Row],[Sr.No.]]="","",Table1[[#This Row],[Sr.No.]]) ->  | B78: =IF(Table1[[#This Row],[Employee Name]]="","",Table1[[#This Row],[Employee Name]]) -> 
A79: =IF(Table1[[#This Row],[Sr.No.]]="","",Table1[[#This Row],[Sr.No.]]) ->  | B79: =IF(Table1[[#This Row],[Employee Name]]="","",Table1[[#This Row],[Employee Name]]) -> 
A80: =IF(Table1[[#This Row],[Sr.No.]]="","",Table1[[#This Row],[Sr.No.]]) ->  | B80: =IF(Table1[[#This Row],[Employee Name]]="","",Table1[[#This Row],[Employee Name]]) -> 
A81: =IF(Table1[[#This Row],[Sr.No.]]="","",Table1[[#This Row],[Sr.No.]]) ->  | B81: =IF(Table1[[#This Row],[Employee Name]]="","",Table1[[#This Row],[Employee Name]]) -> 
A82: =IF(Table1[[#This Row],[Sr.No.]]="","",Table1[[#This Row],[Sr.No.]]) ->  | B82: =IF(Table1[[#This Row],[Employee Name]]="","",Table1[[#This Row],[Employee Name]]) -> 
A83: =IF(Table1[[#This Row],[Sr.No.]]="","",Table1[[#This Row],[Sr.No.]]) ->  | B83: =IF(Table1[[#This Row],[Employee Name]]="","",Table1[[#This Row],[Employee Name]]) -> 
A84: =IF(Table1[[#This Row],[Sr.No.]]="","",Table1[[#This Row],[Sr.No.]]) ->  | B84: =IF(Table1[[#This Row],[Employee Name]]="","",Table1[[#This Row],[Employee Name]]) -> 
A85: =IF(Table1[[#This Row],[Sr.No.]]="","",Table1[[#This Row],[Sr.No.]]) ->  | B85: =IF(Table1[[#This Row],[Employee Name]]="","",Table1[[#This Row],[Employee Name]]) -> 
A86: =IF(Table1[[#This Row],[Sr.No.]]="","",Table1[[#This Row],[Sr.No.]]) ->  | B86: =IF(Table1[[#This Row],[Employee Name]]="","",Table1[[#This Row],[Employee Name]]) -> 
A87: =IF(Table1[[#This Row],[Sr.No.]]="","",Table1[[#This Row],[Sr.No.]]) ->  | B87: =IF(Table1[[#This Row],[Employee Name]]="","",Table1[[#This Row],[Employee Name]]) -> 
A88: =IF(Table1[[#This Row],[Sr.No.]]="","",Table1[[#This Row],[Sr.No.]]) ->  | B88: =IF(Table1[[#This Row],[Employee Name]]="","",Table1[[#This Row],[Employee Name]]) -> 
A89: =IF(Table1[[#This Row],[Sr.No.]]="","",Table1[[#This Row],[Sr.No.]]) ->  | B89: =IF(Table1[[#This Row],[Employee Name]]="","",Table1[[#This Row],[Employee Name]]) -> 
A90: =IF(Table1[[#This Row],[Sr.No.]]="","",Table1[[#This Row],[Sr.No.]]) ->  | B90: =IF(Table1[[#This Row],[Employee Name]]="","",Table1[[#This Row],[Employee Name]]) -> 
A91: =IF(Table1[[#This Row],[Sr.No.]]="","",Table1[[#This Row],[Sr.No.]]) ->  | B91: =IF(Table1[[#This Row],[Employee Name]]="","",Table1[[#This Row],[Employee Name]]) -> 
A92: =IF(Table1[[#This Row],[Sr.No.]]="","",Table1[[#This Row],[Sr.No.]]) ->  | B92: =IF(Table1[[#This Row],[Employee Name]]="","",Table1[[#This Row],[Employee Name]]) -> 
A93: =IF(Table1[[#This Row],[Sr.No.]]="","",Table1[[#This Row],[Sr.No.]]) ->  | B93: =IF(Table1[[#This Row],[Employee Name]]="","",Table1[[#This Row],[Employee Name]]) -> 
A94: =IF(Table1[[#This Row],[Sr.No.]]="","",Table1[[#This Row],[Sr.No.]]) ->  | B94: =IF(Table1[[#This Row],[Employee Name]]="","",Table1[[#This Row],[Employee Name]]) -> 
A95: =IF(Table1[[#This Row],[Sr.No.]]="","",Table1[[#This Row],[Sr.No.]]) ->  | B95: =IF(Table1[[#This Row],[Employee Name]]="","",Table1[[#This Row],[Employee Name]]) -> 
A96: =IF(Table1[[#This Row],[Sr.No.]]="","",Table1[[#This Row],[Sr.No.]]) ->  | B96: =IF(Table1[[#This Row],[Employee Name]]="","",Table1[[#This Row],[Employee Name]]) -> 
A97: =IF(Table1[[#This Row],[Sr.No.]]="","",Table1[[#This Row],[Sr.No.]]) ->  | B97: =IF(Table1[[#This Row],[Employee Name]]="","",Table1[[#This Row],[Employee Name]]) -> 
A98: =IF(Table1[[#This Row],[Sr.No.]]="","",Table1[[#This Row],[Sr.No.]]) ->  | B98: =IF(Table1[[#This Row],[Employee Name]]="","",Table1[[#This Row],[Employee Name]]) -> 
A99: =IF(Table1[[#This Row],[Sr.No.]]="","",Table1[[#This Row],[Sr.No.]]) ->  | B99: =IF(Table1[[#This Row],[Employee Name]]="","",Table1[[#This Row],[Employee Name]]) -> 
A100: =IF(Table1[[#This Row],[Sr.No.]]="","",Table1[[#This Row],[Sr.No.]]) ->  | B100: =IF(Table1[[#This Row],[Employee Name]]="","",Table1[[#This Row],[Employee Name]]) -> 
A101: =IF(Table1[[#This Row],[Sr.No.]]="","",Table1[[#This Row],[Sr.No.]]) ->  | B101: =IF(Table1[[#This Row],[Employee Name]]="","",Table1[[#This Row],[Employee Name]]) -> 
A102: =IF(Table1[[#This Row],[Sr.No.]]="","",Table1[[#This Row],[Sr.No.]]) ->  | B102: =IF(Table1[[#This Row],[Employee Name]]="","",Table1[[#This Row],[Employee Name]]) -> 
A103: =IF(Table1[[#This Row],[Sr.No.]]="","",Table1[[#This Row],[Sr.No.]]) ->  | B103: =IF(Table1[[#This Row],[Employee Name]]="","",Table1[[#This Row],[Employee Name]]) -> 
A104: =IF(Table1[[#This Row],[Sr.No.]]="","",Table1[[#This Row],[Sr.No.]]) ->  | B104: =IF(Table1[[#This Row],[Employee Name]]="","",Table1[[#This Row],[Employee Name]]) -> 
A105: =IF(Table1[[#This Row],[Sr.No.]]="","",Table1[[#This Row],[Sr.No.]]) ->  | B105: =IF(Table1[[#This Row],[Employee Name]]="","",Table1[[#This Row],[Employee Name]]) -> 
A106: =IF(Table1[[#This Row],[Sr.No.]]="","",Table1[[#This Row],[Sr.No.]]) ->  | B106: =IF(Table1[[#This Row],[Employee Name]]="","",Table1[[#This Row],[Employee Name]]) -> 
A107: =IF(Table1[[#This Row],[Sr.No.]]="","",Table1[[#This Row],[Sr.No.]]) ->  | B107: =IF(Table1[[#This Row],[Employee Name]]="","",Table1[[#This Row],[Employee Name]]) -> 
A108: =IF(Table1[[#This Row],[Sr.No.]]="","",Table1[[#This Row],[Sr.No.]]) ->  | B108: =IF(Table1[[#This Row],[Employee Name]]="","",Table1[[#This Row],[Employee Name]]) -> 
A109: =IF(Table1[[#This Row],[Sr.No.]]="","",Table1[[#This Row],[Sr.No.]]) ->  | B109: =IF(Table1[[#This Row],[Employee Name]]="","",Table1[[#This Row],[Employee Name]]) -> 
A110: =IF(Table1[[#This Row],[Sr.No.]]="","",Table1[[#This Row],[Sr.No.]]) ->  | B110: =IF(Table1[[#This Row],[Employee Name]]="","",Table1[[#This Row],[Employee Name]]) -> 
A111: =IF(Table1[[#This Row],[Sr.No.]]="","",Table1[[#This Row],[Sr.No.]]) ->  | B111: =IF(Table1[[#This Row],[Employee Name]]="","",Table1[[#This Row],[Employee Name]]) -> 
A112: =IF(Table1[[#This Row],[Sr.No.]]="","",Table1[[#This Row],[Sr.No.]]) ->  | B112: =IF(Table1[[#This Row],[Employee Name]]="","",Table1[[#This Row],[Employee Name]]) -> 
A113: =IF(Table1[[#This Row],[Sr.No.]]="","",Table1[[#This Row],[Sr.No.]]) ->  | B113: =IF(Table1[[#This Row],[Employee Name]]="","",Table1[[#This Row],[Employee Name]]) -> 
A114: =IF(Table1[[#This Row],[Sr.No.]]="","",Table1[[#This Row],[Sr.No.]]) ->  | B114: =IF(Table1[[#This Row],[Employee Name]]="","",Table1[[#This Row],[Employee Name]]) -> 
A115: =IF(Table1[[#This Row],[Sr.No.]]="","",Table1[[#This Row],[Sr.No.]]) ->  | B115: =IF(Table1[[#This Row],[Employee Name]]="","",Table1[[#This Row],[Employee Name]]) -> 
A116: =IF(Table1[[#This Row],[Sr.No.]]="","",Table1[[#This Row],[Sr.No.]]) ->  | B116: =IF(Table1[[#This Row],[Employee Name]]="","",Table1[[#This Row],[Employee Name]]) -> 
A117: =IF(Table1[[#This Row],[Sr.No.]]="","",Table1[[#This Row],[Sr.No.]]) ->  | B117: =IF(Table1[[#This Row],[Employee Name]]="","",Table1[[#This Row],[Employee Name]]) -> 
A118: =IF(Table1[[#This Row],[Sr.No.]]="","",Table1[[#This Row],[Sr.No.]]) ->  | B118: =IF(Table1[[#This Row],[Employee Name]]="","",Table1[[#This Row],[Employee Name]]) -> 
A119: =IF(Table1[[#This Row],[Sr.No.]]="","",Table1[[#This Row],[Sr.No.]]) ->  | B119: =IF(Table1[[#This Row],[Employee Name]]="","",Table1[[#This Row],[Employee Name]]) -> 
A120: =IF(Table1[[#This Row],[Sr.No.]]="","",Table1[[#This Row],[Sr.No.]]) ->  | B120: =IF(Table1[[#This Row],[Employee Name]]="","",Table1[[#This Row],[Employee Name]]) -> 
A121: =IF(Table1[[#This Row],[Sr.No.]]="","",Table1[[#This Row],[Sr.No.]]) ->  | B121: =IF(Table1[[#This Row],[Employee Name]]="","",Table1[[#This Row],[Employee Name]]) -> 
A122: =IF(Table1[[#This Row],[Sr.No.]]="","",Table1[[#This Row],[Sr.No.]]) ->  | B122: =IF(Table1[[#This Row],[Employee Name]]="","",Table1[[#This Row],[Employee Name]]) -> 
A123: =IF(Table1[[#This Row],[Sr.No.]]="","",Table1[[#This Row],[Sr.No.]]) ->  | B123: =IF(Table1[[#This Row],[Employee Name]]="","",Table1[[#This Row],[Employee Name]]) -> 
A124: =IF(Table1[[#This Row],[Sr.No.]]="","",Table1[[#This Row],[Sr.No.]]) ->  | B124: =IF(Table1[[#This Row],[Employee Name]]="","",Table1[[#This Row],[Employee Name]]) -> 
A125: =IF(Table1[[#This Row],[Sr.No.]]="","",Table1[[#This Row],[Sr.No.]]) ->  | B125: =IF(Table1[[#This Row],[Employee Name]]="","",Table1[[#This Row],[Employee Name]]) -> 
A126: =IF(Table1[[#This Row],[Sr.No.]]="","",Table1[[#This Row],[Sr.No.]]) ->  | B126: =IF(Table1[[#This Row],[Employee Name]]="","",Table1[[#This Row],[Employee Name]]) -> 
A127: =IF(Table1[[#This Row],[Sr.No.]]="","",Table1[[#This Row],[Sr.No.]]) ->  | B127: =IF(Table1[[#This Row],[Employee Name]]="","",Table1[[#This Row],[Employee Name]]) -> 
A128: =IF(Table1[[#This Row],[Sr.No.]]="","",Table1[[#This Row],[Sr.No.]]) ->  | B128: =IF(Table1[[#This Row],[Employee Name]]="","",Table1[[#This Row],[Employee Name]]) -> 
A129: =IF(Table1[[#This Row],[Sr.No.]]="","",Table1[[#This Row],[Sr.No.]]) ->  | B129: =IF(Table1[[#This Row],[Employee Name]]="","",Table1[[#This Row],[Employee Name]]) -> 
A130: =IF(Table1[[#This Row],[Sr.No.]]="","",Table1[[#This Row],[Sr.No.]]) ->  | B130: =IF(Table1[[#This Row],[Employee Name]]="","",Table1[[#This Row],[Employee Name]]) -> 
A131: =IF(Table1[[#This Row],[Sr.No.]]="","",Table1[[#This Row],[Sr.No.]]) ->  | B131: =IF(Table1[[#This Row],[Employee Name]]="","",Table1[[#This Row],[Employee Name]]) -> 
A132: =IF(Table1[[#This Row],[Sr.No.]]="","",Table1[[#This Row],[Sr.No.]]) ->  | B132: =IF(Table1[[#This Row],[Employee Name]]="","",Table1[[#This Row],[Employee Name]]) -> 
A133: =IF(Table1[[#This Row],[Sr.No.]]="","",Table1[[#This Row],[Sr.No.]]) ->  | B133: =IF(Table1[[#This Row],[Employee Name]]="","",Table1[[#This Row],[Employee Name]]) -> 
A134: =IF(Table1[[#This Row],[Sr.No.]]="","",Table1[[#This Row],[Sr.No.]]) ->  | B134: =IF(Table1[[#This Row],[Employee Name]]="","",Table1[[#This Row],[Employee Name]]) -> 
A135: =IF(Table1[[#This Row],[Sr.No.]]="","",Table1[[#This Row],[Sr.No.]]) ->  | B135: =IF(Table1[[#This Row],[Employee Name]]="","",Table1[[#This Row],[Employee Name]]) -> 
A136: =IF(Table1[[#This Row],[Sr.No.]]="","",Table1[[#This Row],[Sr.No.]]) ->  | B136: =IF(Table1[[#This Row],[Employee Name]]="","",Table1[[#This Row],[Employee Name]]) -> 
A137: =IF(Table1[[#This Row],[Sr.No.]]="","",Table1[[#This Row],[Sr.No.]]) ->  | B137: =IF(Table1[[#This Row],[Employee Name]]="","",Table1[[#This Row],[Employee Name]]) -> 
A138: =IF(Table1[[#This Row],[Sr.No.]]="","",Table1[[#This Row],[Sr.No.]]) ->  | B138: =IF(Table1[[#This Row],[Employee Name]]="","",Table1[[#This Row],[Employee Name]]) -> 
A139: =IF(Table1[[#This Row],[Sr.No.]]="","",Table1[[#This Row],[Sr.No.]]) ->  | B139: =IF(Table1[[#This Row],[Employee Name]]="","",Table1[[#This Row],[Employee Name]]) -> 
A140: =IF(Table1[[#This Row],[Sr.No.]]="","",Table1[[#This Row],[Sr.No.]]) ->  | B140: =IF(Table1[[#This Row],[Employee Name]]="","",Table1[[#This Row],[Employee Name]]) -> 
A141: =IF(Table1[[#This Row],[Sr.No.]]="","",Table1[[#This Row],[Sr.No.]]) ->  | B141: =IF(Table1[[#This Row],[Employee Name]]="","",Table1[[#This Row],[Employee Name]]) -> 
A142: =IF(Table1[[#This Row],[Sr.No.]]="","",Table1[[#This Row],[Sr.No.]]) ->  | B142: =IF(Table1[[#This Row],[Employee Name]]="","",Table1[[#This Row],[Employee Name]]) -> 
A143: =IF(Table1[[#This Row],[Sr.No.]]="","",Table1[[#This Row],[Sr.No.]]) ->  | B143: =IF(Table1[[#This Row],[Employee Name]]="","",Table1[[#This Row],[Employee Name]]) -> 
A144: =IF(Table1[[#This Row],[Sr.No.]]="","",Table1[[#This Row],[Sr.No.]]) ->  | B144: =IF(Table1[[#This Row],[Employee Name]]="","",Table1[[#This Row],[Employee Name]]) -> 
A145: =IF(Table1[[#This Row],[Sr.No.]]="","",Table1[[#This Row],[Sr.No.]]) ->  | B145: =IF(Table1[[#This Row],[Employee Name]]="","",Table1[[#This Row],[Employee Name]]) -> 
A146: =IF(Table1[[#This Row],[Sr.No.]]="","",Table1[[#This Row],[Sr.No.]]) ->  | B146: =IF(Table1[[#This Row],[Employee Name]]="","",Table1[[#This Row],[Employee Name]]) -> 
A147: =IF(Table1[[#This Row],[Sr.No.]]="","",Table1[[#This Row],[Sr.No.]]) ->  | B147: =IF(Table1[[#This Row],[Employee Name]]="","",Table1[[#This Row],[Employee Name]]) -> 
A148: =IF(Table1[[#This Row],[Sr.No.]]="","",Table1[[#This Row],[Sr.No.]]) ->  | B148: =IF(Table1[[#This Row],[Employee Name]]="","",Table1[[#This Row],[Employee Name]]) -> 
A149: =IF(Table1[[#This Row],[Sr.No.]]="","",Table1[[#This Row],[Sr.No.]]) ->  | B149: =IF(Table1[[#This Row],[Employee Name]]="","",Table1[[#This Row],[Employee Name]]) -> 
A150: =IF(Table1[[#This Row],[Sr.No.]]="","",Table1[[#This Row],[Sr.No.]]) ->  | B150: =IF(Table1[[#This Row],[Employee Name]]="","",Table1[[#This Row],[Employee Name]]) -> 
A151: =IF(Table1[[#This Row],[Sr.No.]]="","",Table1[[#This Row],[Sr.No.]]) ->  | B151: =IF(Table1[[#This Row],[Employee Name]]="","",Table1[[#This Row],[Employee Name]]) -> 
A152: =IF(Table1[[#This Row],[Sr.No.]]="","",Table1[[#This Row],[Sr.No.]]) ->  | B152: =IF(Table1[[#This Row],[Employee Name]]="","",Table1[[#This Row],[Employee Name]]) -> 
A153: =IF(Table1[[#This Row],[Sr.No.]]="","",Table1[[#This Row],[Sr.No.]]) ->  | B153: =IF(Table1[[#This Row],[Employee Name]]="","",Table1[[#This Row],[Employee Name]]) -> 
A154: =IF(Table1[[#This Row],[Sr.No.]]="","",Table1[[#This Row],[Sr.No.]]) ->  | B154: =IF(Table1[[#This Row],[Employee Name]]="","",Table1[[#This Row],[Employee Name]]) -> 
A155: =IF(Table1[[#This Row],[Sr.No.]]="","",Table1[[#This Row],[Sr.No.]]) ->  | B155: =IF(Table1[[#This Row],[Employee Name]]="","",Table1[[#This Row],[Employee Name]]) -> 
A156: =IF(Table1[[#This Row],[Sr.No.]]="","",Table1[[#This Row],[Sr.No.]]) ->  | B156: =IF(Table1[[#This Row],[Employee Name]]="","",Table1[[#This Row],[Employee Name]]) -> 
A157: =IF(Table1[[#This Row],[Sr.No.]]="","",Table1[[#This Row],[Sr.No.]]) ->  | B157: =IF(Table1[[#This Row],[Employee Name]]="","",Table1[[#This Row],[Employee Name]]) -> 
A158: =IF(Table1[[#This Row],[Sr.No.]]="","",Table1[[#This Row],[Sr.No.]]) ->  | B158: =IF(Table1[[#This Row],[Employee Name]]="","",Table1[[#This Row],[Employee Name]]) -> 
A159: =IF(Table1[[#This Row],[Sr.No.]]="","",Table1[[#This Row],[Sr.No.]]) ->  | B159: =IF(Table1[[#This Row],[Employee Name]]="","",Table1[[#This Row],[Employee Name]]) -> 
A160: =IF(Table1[[#This Row],[Sr.No.]]="","",Table1[[#This Row],[Sr.No.]]) ->  | B160: =IF(Table1[[#This Row],[Employee Name]]="","",Table1[[#This Row],[Employee Name]]) -> 
A161: =IF(Table1[[#This Row],[Sr.No.]]="","",Table1[[#This Row],[Sr.No.]]) ->  | B161: =IF(Table1[[#This Row],[Employee Name]]="","",Table1[[#This Row],[Employee Name]]) -> 
A162: =IF(Table1[[#This Row],[Sr.No.]]="","",Table1[[#This Row],[Sr.No.]]) ->  | B162: =IF(Table1[[#This Row],[Employee Name]]="","",Table1[[#This Row],[Employee Name]]) -> 
A163: =IF(Table1[[#This Row],[Sr.No.]]="","",Table1[[#This Row],[Sr.No.]]) ->  | B163: =IF(Table1[[#This Row],[Employee Name]]="","",Table1[[#This Row],[Employee Name]]) -> 
A164: =IF(Table1[[#This Row],[Sr.No.]]="","",Table1[[#This Row],[Sr.No.]]) ->  | B164: =IF(Table1[[#This Row],[Employee Name]]="","",Table1[[#This Row],[Employee Name]]) -> 
A165: =IF(Table1[[#This Row],[Sr.No.]]="","",Table1[[#This Row],[Sr.No.]]) ->  | B165: =IF(Table1[[#This Row],[Employee Name]]="","",Table1[[#This Row],[Employee Name]]) -> 
A166: =IF(Table1[[#This Row],[Sr.No.]]="","",Table1[[#This Row],[Sr.No.]]) ->  | B166: =IF(Table1[[#This Row],[Employee Name]]="","",Table1[[#This Row],[Employee Name]]) -> 
A167: =IF(Table1[[#This Row],[Sr.No.]]="","",Table1[[#This Row],[Sr.No.]]) ->  | B167: =IF(Table1[[#This Row],[Employee Name]]="","",Table1[[#This Row],[Employee Name]]) -> 
A168: =IF(Table1[[#This Row],[Sr.No.]]="","",Table1[[#This Row],[Sr.No.]]) ->  | B168: =IF(Table1[[#This Row],[Employee Name]]="","",Table1[[#This Row],[Employee Name]]) -> 
A169: =IF(Table1[[#This Row],[Sr.No.]]="","",Table1[[#This Row],[Sr.No.]]) ->  | B169: =IF(Table1[[#This Row],[Employee Name]]="","",Table1[[#This Row],[Employee Name]]) -> 
A170: =IF(Table1[[#This Row],[Sr.No.]]="","",Table1[[#This Row],[Sr.No.]]) ->  | B170: =IF(Table1[[#This Row],[Employee Name]]="","",Table1[[#This Row],[Employee Name]]) -> 
A171: =IF(Table1[[#This Row],[Sr.No.]]="","",Table1[[#This Row],[Sr.No.]]) ->  | B171: =IF(Table1[[#This Row],[Employee Name]]="","",Table1[[#This Row],[Employee Name]]) -> 
A172: =IF(Table1[[#This Row],[Sr.No.]]="","",Table1[[#This Row],[Sr.No.]]) ->  | B172: =IF(Table1[[#This Row],[Employee Name]]="","",Table1[[#This Row],[Employee Name]]) -> 
A173: =IF(Table1[[#This Row],[Sr.No.]]="","",Table1[[#This Row],[Sr.No.]]) ->  | B173: =IF(Table1[[#This Row],[Employee Name]]="","",Table1[[#This Row],[Employee Name]]) -> 
A174: =IF(Table1[[#This Row],[Sr.No.]]="","",Table1[[#This Row],[Sr.No.]]) ->  | B174: =IF(Table1[[#This Row],[Employee Name]]="","",Table1[[#This Row],[Employee Name]]) -> 
A175: =IF(Table1[[#This Row],[Sr.No.]]="","",Table1[[#This Row],[Sr.No.]]) ->  | B175: =IF(Table1[[#This Row],[Employee Name]]="","",Table1[[#This Row],[Employee Name]]) -> 
A176: =IF(Table1[[#This Row],[Sr.No.]]="","",Table1[[#This Row],[Sr.No.]]) ->  | B176: =IF(Table1[[#This Row],[Employee Name]]="","",Table1[[#This Row],[Employee Name]]) -> 
A177: =IF(Table1[[#This Row],[Sr.No.]]="","",Table1[[#This Row],[Sr.No.]]) ->  | B177: =IF(Table1[[#This Row],[Employee Name]]="","",Table1[[#This Row],[Employee Name]]) -> 
A178: =IF(Table1[[#This Row],[Sr.No.]]="","",Table1[[#This Row],[Sr.No.]]) ->  | B178: =IF(Table1[[#This Row],[Employee Name]]="","",Table1[[#This Row],[Employee Name]]) -> 
A179: =IF(Table1[[#This Row],[Sr.No.]]="","",Table1[[#This Row],[Sr.No.]]) ->  | B179: =IF(Table1[[#This Row],[Employee Name]]="","",Table1[[#This Row],[Employee Name]]) -> 
A180: =IF(Table1[[#This Row],[Sr.No.]]="","",Table1[[#This Row],[Sr.No.]]) ->  | B180: =IF(Table1[[#This Row],[Employee Name]]="","",Table1[[#This Row],[Employee Name]]) -> 
A181: =IF(Table1[[#This Row],[Sr.No.]]="","",Table1[[#This Row],[Sr.No.]]) ->  | B181: =IF(Table1[[#This Row],[Employee Name]]="","",Table1[[#This Row],[Employee Name]]) -> 
A182: =IF(Table1[[#This Row],[Sr.No.]]="","",Table1[[#This Row],[Sr.No.]]) ->  | B182: =IF(Table1[[#This Row],[Employee Name]]="","",Table1[[#This Row],[Employee Name]]) -> 

Sheet GA55 A
A1: Government Of Rajasthan | M1: Page No. | O1: 1 | Q1: 1 | R1: =IFERROR(VLOOKUP($Q$1,Emp_data,2,0),"") -> Ashwini Kumar
A2: GA55 A | K2: =IF(Master!$I$1="","",Master!$I$1) -> 18277 | M2: Financial Year : | O2: =IF(Master!$I$2="","",Master!$I$2) -> 2021-22
A3: DDO Code: | C3: =IF(Master!$I$1="","",Master!$I$1) -> 18277 | F3: Office Name : | H3: =IF(Master!$C$1="","",Master!$C$1) -> GSSS Deogarh | M3: TAN: | N3: =IF(Master!$C$2="","",Master!$C$2) -> ZXCVB1234B | Q3: =IF(Master!$I$1="","",Master!$I$1) -> 18277 | R3: July Basic | S3: Bonus
A4: Employee Name : | C4: =IFERROR(VLOOKUP($Q$1,Emp_data,2,0),"NoData") -> Ashwini Kumar | H4: Employee ID : | J4: =IFERROR(VLOOKUP($Q$1,Emp_data,5,0),"NoData") -> RJNA12345678910
A5: Designation : | C5: =IFERROR(VLOOKUP($Q$1,Emp_data,3,0),"NoData") -> Lecturer | H5: Pay Scale : | J5: =IFERROR(VLOOKUP($Q$1,Emp_data,6,0),"NoData") -> L-12 | S5: YES
A6: GPF/PRAN Number : | C6: =IFERROR(VLOOKUP($Q$1,Emp_data,4,0),"NoData") -> 12345678910 | H6: Account No : | J6: =IFERROR(VLOOKUP($Q$1,Emp_data,7,0),"NoData") -> 1234567891011 | M6: PAN : | N6: =IFERROR(VLOOKUP($Q$1,Emp_data,8,0),"NoData") -> ABCD1234E
A7: Pay Month Pay Year | C7: Bill No. TV No. | D7: Bill Date TV Date | E7: ----------------Allowances---------------- | I7: Gross Amount | J7: ------------Deductions------------ | N7: Total deduction | O7: NetAmount | R7: =IF(Master!$I$1="","",Master!$I$1) -> 18277
B8: Salary | E8: Basic | F8: =IFERROR(IF(VLOOKUP($Q$1,Allowance,3,0)=0,"",VLOOKUP($Q$1,Allowance,3,0)),"") -> 47000.00 | G8: DA | H8: =IFERROR(IF($W$9="Yes","",ROUND(F8*'DA HRA Rate'!$C$5,0)),"") -> 7990.00 | I8: =ROUND(SUM(F8:F12,H8:H12),0) -> 58750.00 | J8: ECPenF | K8: =IFERROR(IF($W$8="GPF","",ROUND(SUM($F$8,$H$8)*10%,0)),"") -> 5499.00 | L8: =Table4[[#Headers],[LIC]] -> LIC | M8: =IFERROR(IF(VLOOKUP($Q$1,Deductions,7,0)=0,"",VLOOKUP($Q$1,Deductions,7,0)),"") ->  | N8: =ROUND(SUM(K8:K12,M8:M12),0) -> 8599.00 | O8: =ROUND(SUM(I8-N8),0) -> 50151.00 | W8: =IFERROR(VLOOKUP($Q$1,Emp_data,9,0),"") -> NPS | X8: NPS/GPF
E9: HRA | F9: =IFERROR(IF($W$9="Yes","",ROUND($F8*'DA HRA Rate'!$D$5,0)),"") -> 3760.00 | G9: Wash All. | H9: =IFERROR(IF(VLOOKUP($Q$1,Allowance,5,0)=0,"",VLOOKUP($Q$1,Allowance,5,0)),"") ->  | J9: =Table4[[#Headers],[GPF]] -> GPF | K9: =IFERROR(IF($W$8="NPS","",IF(VLOOKUP($Q$1,Deductions,3,0)=0,"",VLOOKUP($Q$1,Deductions,3,0))),"") ->  | L9: =Table4[[#Headers],[GPF Loan]] -> GPF Loan | M9: =IFERROR(IF(VLOOKUP($Q$1,Deductions,8,0)=0,"",VLOOKUP($Q$1,Deductions,8,0)),"") ->  | Q9: Deduction | R9: Change Month | S9: Changed Amount | W9: =IFERROR(VLOOKUP($Q$1,Emp_data,10,0),"") -> NO | X9: Probation
A10: March | E10: Handi. All. | F10: =IFERROR(IF(VLOOKUP($Q$1,Allowance,4,0)=0,"",VLOOKUP($Q$1,Allowance,4,0)),"") ->  | G10: CCA All. | H10: =IFERROR(IF(VLOOKUP($Q$1,Allowance,6,0)=0,"",VLOOKUP($Q$1,Allowance,6,0)),"") ->  | J10: =Table4[[#Headers],[SIP]] -> SIP | K10: =IFERROR(IF(VLOOKUP($Q$1,Deductions,4,0)=0,"",VLOOKUP($Q$1,Deductions,4,0)),"") -> 3000.00 | L10: =Table4[[#Headers],[SIL]] -> SIL | M10: =IFERROR(IF(VLOOKUP($Q$1,Deductions,9,0)=0,"",VLOOKUP($Q$1,Deductions,9,0)),"") ->  | Q10: =J9 -> GPF | W10: =IFERROR(VLOOKUP($Q$1,Allowance,11,0),"") -> 0 | X10: Basic Change Month
A11: =LEFT($O$2,4) -> 2021 | E11: =Table3[[#Headers],[Ot. Allow 1]] -> Ot. Allow 1 | F11: =IFERROR(IF(VLOOKUP($Q$1,Allowance,7,0)=0,"",VLOOKUP($Q$1,Allowance,7,0)),"") ->  | G11: =Table3[[#Headers],[Ot. Allow 2]] -> Ot. Allow 2 | H11: =IFERROR(IF(VLOOKUP($Q$1,Allowance,8,0)=0,"",VLOOKUP($Q$1,Allowance,8,0)),"") ->  | J11: =Table4[[#Headers],[RPMF]] -> RPMF | K11: =IFERROR(IF(VLOOKUP($Q$1,Deductions,5,0)=0,"",VLOOKUP($Q$1,Deductions,5,0)),"") ->  | L11: =Table4[[#Headers],[Itax]] -> Itax | M11: =IFERROR(IF(VLOOKUP($Q$1,Deductions,10,0)=0,"",VLOOKUP($Q$1,Deductions,10,0)),"") -> 100.00 | Q11: =J11 -> RPMF | W11: =IFERROR(VLOOKUP($Q$1,Allowance,12,0),"") -> 0 | X11: Changed Basic
E12: =Table3[[#Headers],[Ot. Allow 3]] -> Ot. Allow 3 | F12: =IFERROR(IF(VLOOKUP($Q$1,Allowance,9,0)=0,"",VLOOKUP($Q$1,Allowance,9,0)),"") ->  | G12: =Table3[[#Headers],[Ot. Allow 4]] -> Ot. Allow 4 | H12: =IFERROR(IF(VLOOKUP($Q$1,Allowance,10,0)=0,"",VLOOKUP($Q$1,Allowance,10,0)),"") ->  | J12: =Table4[[#Headers],[CM Corona]] -> CM Corona | K12: =IFERROR(IF(VLOOKUP($Q$1,Deductions,6,0)=0,"",VLOOKUP($Q$1,Deductions,6,0)),"") ->  | L12: =Table4[[#Headers],[Other Ded.]] -> Other Ded. | M12: =IFERROR(IF(VLOOKUP($Q$1,Deductions,11,0)=0,"",VLOOKUP($Q$1,Deductions,11,0)),"") ->  | Q12: =Table4[[#Headers],[LIC]] -> LIC
B13: Salary | E13: =E8 -> Basic | F13: =IFERROR(IF($A$15=$W$10,$W$11,F8),"") -> 47000.00 | G13: =G8 -> DA | H13: =IFERROR(IF($W$9="Yes","",$F$13*'DA HRA Rate'!$C$6),"") -> 7990.00 | I13: =ROUND(SUM(F13:F17,H13:H17),0) -> 58750.00 | J13: ECPenF | K13: =IF($W$8="GPF","",ROUND(SUM($F$13,$H$13)*10%,0)) -> 5499.00 | L13: =Table4[[#Headers],[LIC]] -> LIC | M13: =IF($A15=$R$12,$S$12,$M8) ->  | N13: =ROUND(SUM(K13:K17,M13:M17),0) -> 8599.00 | O13: =ROUND(SUM(I13-N13),0) -> 50151.00 | Q13: =Table4[[#Headers],[GPF Loan]] -> GPF Loan
E14: =E9 -> HRA | F14: =IFERROR(IF($W$9="Yes","",ROUND($F13*'DA HRA Rate'!$D$6,0)),"") -> 3760.00 | G14: =G9 -> Wash All. | H14: =IFERROR(IF(VLOOKUP($Q$1,Allowance,5,0)=0,"",VLOOKUP($Q$1,Allowance,5,0)),"") ->  | J14: =Table4[[#Headers],[GPF]] -> GPF | K14: =IF($A$15=$R$10,$S$10,IF($W$8="NPS","",$K$9)) ->  | L14: =Table4[[#Headers],[GPF Loan]] -> GPF Loan | M14: =IF($A15=$R$13,$S$13,$M9) ->  | Q14: =Table4[[#Headers],[SIL]] -> SIL
A15: April | E15: Handi. All. | F15: =IFERROR(IF(VLOOKUP($Q$1,Allowance,4,0)=0,"",VLOOKUP($Q$1,Allowance,4,0)),"") ->  | G15: =G10 -> CCA All. | H15: =IFERROR(IF(VLOOKUP($Q$1,Allowance,6,0)=0,"",VLOOKUP($Q$1,Allowance,6,0)),"") ->  | J15: =Table4[[#Headers],[SIP]] -> SIP | K15: =IF($K10="","",$K10) -> 3000.00 | L15: =Table4[[#Headers],[SIL]] -> SIL | M15: =IF($A15=$R$14,$S$14,$M10) ->  | Q15: =Table4[[#Headers],[Itax]] -> Itax | R15: June | S15: 2000
A16: =LEFT($O$2,4) -> 2021 | E16: Ot. Allow 1 | F16: =IFERROR(IF(VLOOKUP($Q$1,Allowance,7,0)=0,"",VLOOKUP($Q$1,Allowance,7,0)),"") ->  | G16: =G11 -> Ot. Allow 2 | H16: =IFERROR(IF(VLOOKUP($Q$1,Allowance,8,0)=0,"",VLOOKUP($Q$1,Allowance,8,0)),"") ->  | J16: =Table4[[#Headers],[RPMF]] -> RPMF | K16: =IF($A15=$R$11,$S$11,IF($W$8="NPS","",$K11)) ->  | L16: =Table4[[#Headers],[Itax]] -> Itax | M16: =IF($A15=$R$15,$S$15,$M11) -> 100.00 | Q16: =Table4[[#Headers],[Other Ded.]] -> Other Ded.
E17: Ot. Allow 3 | F17: =IFERROR(IF(VLOOKUP($Q$1,Allowance,9,0)=0,"",VLOOKUP($Q$1,Allowance,9,0)),"") ->  | G17: Ot. Allow 4 | H17: =IFERROR(IF(VLOOKUP($Q$1,Allowance,10,0)=0,"",VLOOKUP($Q$1,Allowance,10,0)),"") ->  | J17: =Table4[[#Headers],[CM Corona]] -> CM Corona | K17: =IF($A15=$R$17,$S$17,$K12) ->  | L17: =Table4[[#Headers],[Other Ded.]] -> Other Ded. | M17: =IF($A15=$R$16,$S$16,$M12) ->  | Q17: =Table4[[#Headers],[CM Corona]] -> CM Corona
B18: Salary | E18: =E13 -> Basic | F18: =IFERROR(IF($A$20=$W$10,$W$11,F13),"") -> 47000.00 | G18: =G13 -> DA | H18: =IFERROR(IF($W$9="Yes","",$F$18*'DA HRA Rate'!$C$7),"") -> 7990.00 | I18: =ROUND(SUM(F18:F22,H18:H22),0) -> 58750.00 | J18: ECPenF | K18: =IF($W$8="GPF","",ROUND(SUM($F$18,$H$18)*10%,0)) -> 5499.00 | L18: =Table4[[#Headers],[LIC]] -> LIC | M18: =IF($A20=$R$12,$S$12,$M13) ->  | N18: =ROUND(SUM(K18:K22,M18:M22),0) -> 8599.00 | O18: =ROUND(SUM(I18-N18),0) -> 50151.00
E19: HRA | F19: =IFERROR(IF($W$9="Yes","",ROUND($F18*'DA HRA Rate'!$D$7,0)),"") -> 3760.00 | G19: Wash All. | H19: =IFERROR(IF(VLOOKUP($Q$1,Allowance,5,0)=0,"",VLOOKUP($Q$1,Allowance,5,0)),"") ->  | J19: =Table4[[#Headers],[GPF]] -> GPF | K19: =IF($A$20=$R$10,$S$10,IF($W$8="NPS","",$K$14)) ->  | L19: =Table4[[#Headers],[GPF Loan]] -> GPF Loan | M19: =IF($A20=$R$13,$S$13,$M14) -> 
A20: May | E20: Handi. All. | F20: =IFERROR(IF(VLOOKUP($Q$1,Allowance,4,0)=0,"",VLOOKUP($Q$1,Allowance,4,0)),"") ->  | G20: CCA All. | H20: =IFERROR(IF(VLOOKUP($Q$1,Allowance,6,0)=0,"",VLOOKUP($Q$1,Allowance,6,0)),"") ->  | J20: =Table4[[#Headers],[SIP]] -> SIP | K20: =IF($K15="","",$K15) -> 3000.00 | L20: =Table4[[#Headers],[SIL]] -> SIL | M20: =IF($A20=$R$14,$S$14,$M15) -> 
A21: =LEFT($O$2,4) -> 2021 | E21: Ot. Allow 1 | F21: =IFERROR(IF(VLOOKUP($Q$1,Allowance,7,0)=0,"",VLOOKUP($Q$1,Allowance,7,0)),"") ->  | G21: Ot. Allow 2 | H21: =IFERROR(IF(VLOOKUP($Q$1,Allowance,8,0)=0,"",VLOOKUP($Q$1,Allowance,8,0)),"") ->  | J21: =Table4[[#Headers],[RPMF]] -> RPMF | K21: =IF($A20=$R$11,$S$11,IF($W$8="NPS","",$K16)) ->  | L21: =Table4[[#Headers],[Itax]] -> Itax | M21: =IF($A20=$R$15,$S$15,$M16) -> 100.00
E22: Ot. Allow 3 | F22: =IFERROR(IF(VLOOKUP($Q$1,Allowance,9,0)=0,"",VLOOKUP($Q$1,Allowance,9,0)),"") ->  | G22: Ot. Allow 4 | H22: =IFERROR(IF(VLOOKUP($Q$1,Allowance,10,0)=0,"",VLOOKUP($Q$1,Allowance,10,0)),"") ->  | J22: =Table4[[#Headers],[CM Corona]] -> CM Corona | K22: =IF($A20=$R$17,$S$17,$K17) ->  | L22: =Table4[[#Headers],[Other Ded.]] -> Other Ded. | M22: =IF($A20=$R$16,$S$16,$M17) -> 
B23: Salary | E23: =E18 -> Basic | F23: =IFERROR(IF($A$25=$W$10,$W$11,F18),"") -> 47000.00 | G23: =G18 -> DA | H23: =IFERROR(IF($W$9="Yes","",$F$23*'DA HRA Rate'!$C$8),"") -> 7990.00 | I23: =ROUND(SUM(F23:F27,H23:H27),0) -> 58750.00 | J23: ECPenF | K23: =IF($W$8="GPF","",ROUND(SUM($F$23,$H$23)*10%,0)) -> 5499.00 | L23: =Table4[[#Headers],[LIC]] -> LIC | M23: =IF($A25=$R$12,$S$12,$M18) ->  | N23: =ROUND(SUM(K23:K27,M23:M27),0) -> 10499.00 | O23: =ROUND(SUM(I23-N23),0) -> 48251.00
E24: HRA | F24: =IFERROR(IF($W$9="Yes","",ROUND($F23*'DA HRA Rate'!$D$8,0)),"") -> 3760.00 | G24: Wash All. | H24: =IFERROR(IF(VLOOKUP($Q$1,Allowance,5,0)=0,"",VLOOKUP($Q$1,Allowance,5,0)),"") ->  | J24: =Table4[[#Headers],[GPF]] -> GPF | K24: =IF($A$25=$R$10,$S$10,IF($W$8="NPS","",$K$19)) ->  | L24: =Table4[[#Headers],[GPF Loan]] -> GPF Loan | M24: =IF($A25=$R$13,$S$13,$M19) -> 
A25: June | E25: Handi. All. | F25: =IFERROR(IF(VLOOKUP($Q$1,Allowance,4,0)=0,"",VLOOKUP($Q$1,Allowance,4,0)),"") ->  | G25: CCA All. | H25: =IFERROR(IF(VLOOKUP($Q$1,Allowance,6,0)=0,"",VLOOKUP($Q$1,Allowance,6,0)),"") ->  | J25: =Table4[[#Headers],[SIP]] -> SIP | K25: =IF($K20="","",$K20) -> 3000.00 | L25: =Table4[[#Headers],[SIL]] -> SIL | M25: =IF($A25=$R$14,$S$14,$M20) -> 
A26: =LEFT($O$2,4) -> 2021 | E26: Ot. Allow 1 | F26: =IFERROR(IF(VLOOKUP($Q$1,Allowance,7,0)=0,"",VLOOKUP($Q$1,Allowance,7,0)),"") ->  | G26: Ot. Allow 2 | H26: =IFERROR(IF(VLOOKUP($Q$1,Allowance,8,0)=0,"",VLOOKUP($Q$1,Allowance,8,0)),"") ->  | J26: =Table4[[#Headers],[RPMF]] -> RPMF | K26: =IF($A25=$R$11,$S$11,IF($W$8="NPS","",$K21)) ->  | L26: =Table4[[#Headers],[Itax]] -> Itax | M26: =IF($A25=$R$15,$S$15,$M21) -> 2000.00
E27: Ot. Allow 3 | F27: =IFERROR(IF(VLOOKUP($Q$1,Allowance,9,0)=0,"",VLOOKUP($Q$1,Allowance,9,0)),"") ->  | G27: Ot. Allow 4 | H27: =IFERROR(IF(VLOOKUP($Q$1,Allowance,10,0)=0,"",VLOOKUP($Q$1,Allowance,10,0)),"") ->  | J27: =Table4[[#Headers],[CM Corona]] -> CM Corona | K27: =IF($A25=$R$17,$S$17,$K22) ->  | L27: =Table4[[#Headers],[Other Ded.]] -> Other Ded. | M27: =IF($A25=$R$16,$S$16,$M22) -> 
B28: Salary | E28: =E23 -> Basic | F28: =IFERROR(IF($R$5="",IF($W$9="Yes",F23,IF($A$30=$W$10,$W$11,MROUND(F23*1.03,100))),$R$5),"") -> 48400.00 | G28: =G23 -> DA | H28: =IFERROR(IF($W$9="Yes","",$F$28*'DA HRA Rate'!$C$9),"") -> 13552.00 | I28: =ROUND(SUM(F28:F32,H28:H32),0) -> 65824.00 | J28: ECPenF | K28: =IF($W$8="GPF","",ROUND(SUM($F$28,$H$28)*10%,0)) -> 6195.00 | L28: =Table4[[#Headers],[LIC]] -> LIC | M28: =IF($A30=$R$12,$S$12,$M23) ->  | N28: =ROUND(SUM(K28:K32,M28:M32),0) -> 11195.00 | O28: =ROUND(SUM(I28-N28),0) -> 54629.00
E29: HRA | F29: =IFERROR(IF($W$9="Yes","",ROUND($F28*'DA HRA Rate'!$D$9,0)),"") -> 3872.00 | G29: Wash All. | H29: =IFERROR(IF(VLOOKUP($Q$1,Allowance,5,0)=0,"",VLOOKUP($Q$1,Allowance,5,0)),"") ->  | J29: =Table4[[#Headers],[GPF]] -> GPF | K29: =IF($A$30=$R$10,$S$10,IF($W$8="NPS","",$K$24)) ->  | L29: =Table4[[#Headers],[GPF Loan]] -> GPF Loan | M29: =IF($A30=$R$13,$S$13,$M24) -> 
A30: July | E30: Handi. All. | F30: =IFERROR(IF(VLOOKUP($Q$1,Allowance,4,0)=0,"",VLOOKUP($Q$1,Allowance,4,0)),"") ->  | G30: CCA All. | H30: =IFERROR(IF(VLOOKUP($Q$1,Allowance,6,0)=0,"",VLOOKUP($Q$1,Allowance,6,0)),"") ->  | J30: =Table4[[#Headers],[SIP]] -> SIP | K30: =IF($K25="","",$K25) -> 3000.00 | L30: =Table4[[#Headers],[SIL]] -> SIL | M30: =IF($A30=$R$14,$S$14,$M25) -> 
A31: =LEFT($O$2,4) -> 2021 | E31: Ot. Allow 1 | F31: =IFERROR(IF(VLOOKUP($Q$1,Allowance,7,0)=0,"",VLOOKUP($Q$1,Allowance,7,0)),"") ->  | G31: Ot. Allow 2 | H31: =IFERROR(IF(VLOOKUP($Q$1,Allowance,8,0)=0,"",VLOOKUP($Q$1,Allowance,8,0)),"") ->  | J31: =Table4[[#Headers],[RPMF]] -> RPMF | K31: =IF($A30=$R$11,$S$11,IF($W$8="NPS","",$K26)) ->  | L31: =Table4[[#Headers],[Itax]] -> Itax | M31: =IF($A30=$R$15,$S$15,$M26) -> 2000.00
E32: Ot. Allow 3 | F32: =IFERROR(IF(VLOOKUP($Q$1,Allowance,9,0)=0,"",VLOOKUP($Q$1,Allowance,9,0)),"") ->  | G32: Ot. Allow 4 | H32: =IFERROR(IF(VLOOKUP($Q$1,Allowance,10,0)=0,"",VLOOKUP($Q$1,Allowance,10,0)),"") ->  | J32: =Table4[[#Headers],[CM Corona]] -> CM Corona | K32: =IF($A30=$R$17,$S$17,$K27) ->  | L32: =Table4[[#Headers],[Other Ded.]] -> Other Ded. | M32: =IF($A30=$R$16,$S$16,$M27) -> 
B33: Salary | E33: =E28 -> Basic | F33: =IFERROR(IF($A$35=$W$10,$W$11,F28),"") -> 48400.00 | G33: =G28 -> DA | H33: =IFERROR(IF($W$9="Yes","",$F$33*'DA HRA Rate'!$C$10),"") -> 13552.00 | I33: =ROUND(SUM(F33:F37,H33:H37),0) -> 66308.00 | J33: ECPenF | K33: =IF($W$8="GPF","",ROUND(SUM($F$33,$H$33)*10%,0)) -> 6195.00 | L33: =Table4[[#Headers],[LIC]] -> LIC | M33: =IF($A35=$R$12,$S$12,$M28) ->  | N33: =ROUND(SUM(K33:K37,M33:M37),0) -> 11195.00 | O33: =ROUND(SUM(I33-N33),0) -> 55113.00
E34: HRA | F34: =IFERROR(IF($W$9="Yes","",ROUND($F33*'DA HRA Rate'!$D$10,0)),"") -> 4356.00 | G34: Wash All. | H34: =IFERROR(IF(VLOOKUP($Q$1,Allowance,5,0)=0,"",VLOOKUP($Q$1,Allowance,5,0)),"") ->  | J34: =Table4[[#Headers],[GPF]] -> GPF | K34: =IF($A$35=$R$10,$S$10,IF($W$8="NPS","",$K$29)) ->  | L34: =Table4[[#Headers],[GPF Loan]] -> GPF Loan | M34: =IF($A35=$R$13,$S$13,$M29) -> 
A35: August | E35: Handi. All. | F35: =IFERROR(IF(VLOOKUP($Q$1,Allowance,4,0)=0,"",VLOOKUP($Q$1,Allowance,4,0)),"") ->  | G35: CCA All. | H35: =IFERROR(IF(VLOOKUP($Q$1,Allowance,6,0)=0,"",VLOOKUP($Q$1,Allowance,6,0)),"") ->  | J35: =Table4[[#Headers],[SIP]] -> SIP | K35: =IF($K30="","",$K30) -> 3000.00 | L35: =Table4[[#Headers],[SIL]] -> SIL | M35: =IF($A35=$R$14,$S$14,$M30) -> 
A36: =LEFT($O$2,4) -> 2021 | E36: Ot. Allow 1 | F36: =IFERROR(IF(VLOOKUP($Q$1,Allowance,7,0)=0,"",VLOOKUP($Q$1,Allowance,7,0)),"") ->  | G36: Ot. Allow 2 | H36: =IFERROR(IF(VLOOKUP($Q$1,Allowance,8,0)=0,"",VLOOKUP($Q$1,Allowance,8,0)),"") ->  | J36: =Table4[[#Headers],[RPMF]] -> RPMF | K36: =IF($A35=$R$11,$S$11,IF($W$8="NPS","",$K31)) ->  | L36: =Table4[[#Headers],[Itax]] -> Itax | M36: =IF($A35=$R$15,$S$15,$M31) -> 2000.00
E37: Ot. Allow 3 | F37: =IFERROR(IF(VLOOKUP($Q$1,Allowance,9,0)=0,"",VLOOKUP($Q$1,Allowance,9,0)),"") ->  | G37: Ot. Allow 4 | H37: =IFERROR(IF(VLOOKUP($Q$1,Allowance,10,0)=0,"",VLOOKUP($Q$1,Allowance,10,0)),"") ->  | J37: =Table4[[#Headers],[CM Corona]] -> CM Corona | K37: =IF($A35=$R$17,$S$17,$K32) ->  | L37: =Table4[[#Headers],[Other Ded.]] -> Other Ded. | M37: =IF($A35=$R$16,$S$16,$M32) -> 
A38: Government Of Rajasthan | M38: Page No. | O38: 2
A39: GA55 A | M39: Financial Year : | O39: =IF(Master!$I$2="","",Master!$I$2) -> 2021-22
B40: Salary | E40: =E33 -> Basic | F40: =IFERROR(IF($A$42=$W$10,$W$11,F33),"") -> 48400.00 | G40: =G33 -> DA | H40: =IFERROR(IF($W$9="Yes","",$F$40*'DA HRA Rate'!$C$11),"") -> 13552.00 | I40: =ROUND(SUM(F40:F44,H40:H44),0) -> 66308.00 | J40: ECPenF | K40: =IF($W$8="GPF","",ROUND(SUM($F$40,$H$40)*10%,0)) -> 6195.00 | L40: =Table4[[#Headers],[LIC]] -> LIC | M40: =IF($A42=$R$12,$S$12,$M33) ->  | N40: =ROUND(SUM(K40:K44,M40:M44),0) -> 11195.00 | O40: =ROUND(SUM(I40-N40),0) -> 55113.00
E41: =E34 -> HRA | F41: =IFERROR(IF($W$9="Yes","",ROUND($F40*'DA HRA Rate'!$D$11,0)),"") -> 4356.00 | G41: =G34 -> Wash All. | H41: =IFERROR(IF(VLOOKUP($Q$1,Allowance,5,0)=0,"",VLOOKUP($Q$1,Allowance,5,0)),"") ->  | J41: =Table4[[#Headers],[GPF]] -> GPF | K41: =IF($A$42=$R$10,$S$10,IF($W$8="NPS","",$K$34)) ->  | L41: =Table4[[#Headers],[GPF Loan]] -> GPF Loan | M41: =IF($A42=$R$13,$S$13,$M34) -> 
A42: September | E42: Handi. All. | F42: =IFERROR(IF(VLOOKUP($Q$1,Allowance,4,0)=0,"",VLOOKUP($Q$1,Allowance,4,0)),"") ->  | G42: CCA All. | H42: =IFERROR(IF(VLOOKUP($Q$1,Allowance,6,0)=0,"",VLOOKUP($Q$1,Allowance,6,0)),"") ->  | J42: =Table4[[#Headers],[SIP]] -> SIP | K42: =IF($K35="","",$K35) -> 3000.00 | L42: =Table4[[#Headers],[SIL]] -> SIL | M42: =IF($A42=$R$14,$S$14,$M35) -> 
A43: =LEFT($O$2,4) -> 2021 | E43: Ot. Allow 1 | F43: =IFERROR(IF(VLOOKUP($Q$1,Allowance,7,0)=0,"",VLOOKUP($Q$1,Allowance,7,0)),"") ->  | G43: Ot. Allow 2 | H43: =IFERROR(IF(VLOOKUP($Q$1,Allowance,8,0)=0,"",VLOOKUP($Q$1,Allowance,8,0)),"") ->  | J43: =Table4[[#Headers],[RPMF]] -> RPMF | K43: =IF($A42=$R$11,$S$11,IF($W$8="NPS","",$K36)) ->  | L43: =Table4[[#Headers],[Itax]] -> Itax | M43: =IF($A42=$R$15,$S$15,$M36) -> 2000.00
E44: Ot. Allow 3 | F44: =IFERROR(IF(VLOOKUP($Q$1,Allowance,9,0)=0,"",VLOOKUP($Q$1,Allowance,9,0)),"") ->  | G44: Ot. Allow 4 | H44: =IFERROR(IF(VLOOKUP($Q$1,Allowance,10,0)=0,"",VLOOKUP($Q$1,Allowance,10,0)),"") ->  | J44: =Table4[[#Headers],[CM Corona]] -> CM Corona | K44: =IF($A42=$R$17,$S$17,$K37) ->  | L44: =Table4[[#Headers],[Other Ded.]] -> Other Ded. | M44: =IF($A42=$R$16,$S$16,$M37) -> 
B45: Salary | E45: =E40 -> Basic | F45: =IFERROR(IF($A$47=$W$10,$W$11,F40),"") -> 48400.00 | G45: =G40 -> DA | H45: =IFERROR(IF($W$9="Yes","",$F$45*'DA HRA Rate'!$C$12),"") -> 13552.00 | I45: =ROUND(SUM(F45:F49,H45:H49),0) -> 66308.00 | J45: ECPenF | K45: =IF($W$8="GPF","",ROUND(SUM($F$45,$H$45)*10%,0)) -> 6195.00 | L45: =Table4[[#Headers],[LIC]] -> LIC | M45: =IF($A47=$R$12,$S$12,$M40) ->  | N45: =ROUND(SUM(K45:K49,M45:M49),0) -> 11195.00 | O45: =ROUND(SUM(I45-N45),0) -> 55113.00
E46: =E41 -> HRA | F46: =IFERROR(IF($W$9="Yes","",ROUND($F45*'DA HRA Rate'!$D$12,0)),"") -> 4356.00 | G46: =G41 -> Wash All. | H46: =IFERROR(IF(VLOOKUP($Q$1,Allowance,5,0)=0,"",VLOOKUP($Q$1,Allowance,5,0)),"") ->  | J46: =Table4[[#Headers],[GPF]] -> GPF | K46: =IF($A$47=$R$10,$S$10,IF($W$8="NPS","",$K$41)) ->  | L46: =Table4[[#Headers],[GPF Loan]] -> GPF Loan | M46: =IF($A47=$R$13,$S$13,$M41) -> 
A47: October | E47: Handi. All. | F47: =IFERROR(IF(VLOOKUP($Q$1,Allowance,4,0)=0,"",VLOOKUP($Q$1,Allowance,4,0)),"") ->  | G47: CCA All. | H47: =IFERROR(IF(VLOOKUP($Q$1,Allowance,6,0)=0,"",VLOOKUP($Q$1,Allowance,6,0)),"") ->  | J47: =Table4[[#Headers],[SIP]] -> SIP | K47: =IF($K42="","",$K42) -> 3000.00 | L47: =Table4[[#Headers],[SIL]] -> SIL | M47: =IF($A47=$R$14,$S$14,$M42) -> 
A48: =LEFT($O$2,4) -> 2021 | E48: Ot. Allow 1 | F48: =IFERROR(IF(VLOOKUP($Q$1,Allowance,7,0)=0,"",VLOOKUP($Q$1,Allowance,7,0)),"") ->  | G48: Ot. Allow 2 | H48: =IFERROR(IF(VLOOKUP($Q$1,Allowance,8,0)=0,"",VLOOKUP($Q$1,Allowance,8,0)),"") ->  | J48: =Table4[[#Headers],[RPMF]] -> RPMF | K48: =IF($A47=$R$11,$S$11,IF($W$8="NPS","",$K43)) ->  | L48: =Table4[[#Headers],[Itax]] -> Itax | M48: =IF($A47=$R$15,$S$15,$M43) -> 2000.00
E49: Ot. Allow 3 | F49: =IFERROR(IF(VLOOKUP($Q$1,Allowance,9,0)=0,"",VLOOKUP($Q$1,Allowance,9,0)),"") ->  | G49: Ot. Allow 4 | H49: =IFERROR(IF(VLOOKUP($Q$1,Allowance,10,0)=0,"",VLOOKUP($Q$1,Allowance,10,0)),"") ->  | J49: =Table4[[#Headers],[CM Corona]] -> CM Corona | K49: =IF($A47=$R$17,$S$17,$K44) ->  | L49: =Table4[[#Headers],[Other Ded.]] -> Other Ded. | M49: =IF($A47=$R$16,$S$16,$M44) -> 
B50: Salary | E50: =E45 -> Basic | F50: =IFERROR(IF($A$52=$W$10,$W$11,F45),"") -> 48400.00 | G50: =G45 -> DA | H50: =IFERROR(IF($W$9="Yes","",$F$50*'DA HRA Rate'!$C$13),"") -> 13552.00 | I50: =ROUND(SUM(F50:F54,H50:H54),0) -> 66308.00 | J50: ECPenF | K50: =IF($W$8="GPF","",ROUND(SUM($F$50,$H$50)*10%,0)) -> 6195.00 | L50: =Table4[[#Headers],[LIC]] -> LIC | M50: =IF($A52=$R$12,$S$12,$M45) ->  | N50: =ROUND(SUM(K50:K54,M50:M54),0) -> 11195.00 | O50: =ROUND(SUM(I50-N50),0) -> 55113.00
E51: HRA | F51: =IFERROR(IF($W$9="Yes","",ROUND($F50*'DA HRA Rate'!$D$13,0)),"") -> 4356.00 | G51: Wash All. | H51: =IFERROR(IF(VLOOKUP($Q$1,Allowance,5,0)=0,"",VLOOKUP($Q$1,Allowance,5,0)),"") ->  | J51: =Table4[[#Headers],[GPF]] -> GPF | K51: =IF($A$52=$R$10,$S$10,IF($W$8="NPS","",$K$46)) ->  | L51: =Table4[[#Headers],[GPF Loan]] -> GPF Loan | M51: =IF($A52=$R$13,$S$13,$M46) -> 
A52: November | E52: Handi. All. | F52: =IFERROR(IF(VLOOKUP($Q$1,Allowance,4,0)=0,"",VLOOKUP($Q$1,Allowance,4,0)),"") ->  | G52: CCA All. | H52: =IFERROR(IF(VLOOKUP($Q$1,Allowance,6,0)=0,"",VLOOKUP($Q$1,Allowance,6,0)),"") ->  | J52: =Table4[[#Headers],[SIP]] -> SIP | K52: =IF($K47="","",$K47) -> 3000.00 | L52: =Table4[[#Headers],[SIL]] -> SIL | M52: =IF($A52=$R$14,$S$14,$M47) -> 
A53: =LEFT($O$2,4) -> 2021 | E53: Ot. Allow 1 | F53: =IFERROR(IF(VLOOKUP($Q$1,Allowance,7,0)=0,"",VLOOKUP($Q$1,Allowance,7,0)),"") ->  | G53: Ot. Allow 2 | H53: =IFERROR(IF(VLOOKUP($Q$1,Allowance,8,0)=0,"",VLOOKUP($Q$1,Allowance,8,0)),"") ->  | J53: =Table4[[#Headers],[RPMF]] -> RPMF | K53: =IF($A52=$R$11,$S$11,IF($W$8="NPS","",$K48)) ->  | L53: =Table4[[#Headers],[Itax]] -> Itax | M53: =IF($A52=$R$15,$S$15,$M48) -> 2000.00
E54: Ot. Allow 3 | F54: =IFERROR(IF(VLOOKUP($Q$1,Allowance,9,0)=0,"",VLOOKUP($Q$1,Allowance,9,0)),"") ->  | G54: Ot. Allow 4 | H54: =IFERROR(IF(VLOOKUP($Q$1,Allowance,10,0)=0,"",VLOOKUP($Q$1,Allowance,10,0)),"") ->  | J54: =Table4[[#Headers],[CM Corona]] -> CM Corona | K54: =IF($A52=$R$17,$S$17,$K49) ->  | L54: =Table4[[#Headers],[Other Ded.]] -> Other Ded. | M54: =IF($A52=$R$16,$S$16,$M49) -> 
B55: Salary | E55: =E50 -> Basic | F55: =IFERROR(IF($A$57=$W$10,$W$11,F50),"") -> 48400.00 | G55: =G50 -> DA | H55: =IFERROR(IF($W$9="Yes","",$F$55*'DA HRA Rate'!$C$14),"") -> 13552.00 | I55: =ROUND(SUM(F55:F59,H55:H59),) -> 66308.00 | J55: ECPenF | K55: =IF($W$8="GPF","",ROUND(SUM($F$55,$H$55)*10%,0)) -> 6195.00 | L55: =Table4[[#Headers],[LIC]] -> LIC | M55: =IF($A57=$R$12,$S$12,$M50) ->  | N55: =ROUND(SUM(K55:K59,M55:M59),0) -> 11195.00 | O55: =ROUND(SUM(I55-N55),0) -> 55113.00
E56: HRA | F56: =IFERROR(IF($W$9="Yes","",ROUND($F55*'DA HRA Rate'!$D$14,0)),"") -> 4356.00 | G56: Wash All. | H56: =IFERROR(IF(VLOOKUP($Q$1,Allowance,5,0)=0,"",VLOOKUP($Q$1,Allowance,5,0)),"") ->  | J56: =Table4[[#Headers],[GPF]] -> GPF | K56: =IF($A$57=$R$10,$S$10,IF($W$8="NPS","",$K$51)) ->  | L56: =Table4[[#Headers],[GPF Loan]] -> GPF Loan | M56: =IF($A57=$R$13,$S$13,$M51) -> 
A57: December | E57: Handi. All. | F57: =IFERROR(IF(VLOOKUP($Q$1,Allowance,4,0)=0,"",VLOOKUP($Q$1,Allowance,4,0)),"") ->  | G57: CCA All. | H57: =IFERROR(IF(VLOOKUP($Q$1,Allowance,6,0)=0,"",VLOOKUP($Q$1,Allowance,6,0)),"") ->  | J57: =Table4[[#Headers],[SIP]] -> SIP | K57: =IF($K52="","",$K52) -> 3000.00 | L57: =Table4[[#Headers],[SIL]] -> SIL | M57: =IF($A57=$R$14,$S$14,$M52) -> 
A58: =LEFT($O$2,4) -> 2021 | E58: Ot. Allow 1 | F58: =IFERROR(IF(VLOOKUP($Q$1,Allowance,7,0)=0,"",VLOOKUP($Q$1,Allowance,7,0)),"") ->  | G58: Ot. Allow 2 | H58: =IFERROR(IF(VLOOKUP($Q$1,Allowance,8,0)=0,"",VLOOKUP($Q$1,Allowance,8,0)),"") ->  | J58: =Table4[[#Headers],[RPMF]] -> RPMF | K58: =IF($A57=$R$11,$S$11,IF($W$8="NPS","",$K53)) ->  | L58: =Table4[[#Headers],[Itax]] -> Itax | M58: =IF($A57=$R$15,$S$15,$M53) -> 2000.00
E59: Ot. Allow 3 | F59: =IFERROR(IF(VLOOKUP($Q$1,Allowance,9,0)=0,"",VLOOKUP($Q$1,Allowance,9,0)),"") ->  | G59: Ot. Allow 4 | H59: =IFERROR(IF(VLOOKUP($Q$1,Allowance,10,0)=0,"",VLOOKUP($Q$1,Allowance,10,0)),"") ->  | J59: =Table4[[#Headers],[CM Corona]] -> CM Corona | K59: =IF($A57=$R$17,$S$17,$K54) ->  | L59: =Table4[[#Headers],[Other Ded.]] -> Other Ded. | M59: =IF($A57=$R$16,$S$16,$M54) -> 
B60: Salary | E60: =E55 -> Basic | F60: =IFERROR(IF($A$62=$W$10,$W$11,F55),"") -> 48400.00 | G60: =G55 -> DA | H60: =IFERROR(IF($W$9="Yes","",$F$60*'DA HRA Rate'!$C$15),"") -> 13552.00 | I60: =ROUND(SUM(F60:F64,H60:H64),) -> 66308.00 | J60: ECPenF | K60: =IF($W$8="GPF","",ROUND(SUM($F$60,$H$60)*10%,0)) -> 6195.00 | L60: =Table4[[#Headers],[LIC]] -> LIC | M60: =IF($A62=$R$12,$S$12,$M55) ->  | N60: =ROUND(SUM(K60:K64,M60:M64),0) -> 11195.00 | O60: =ROUND(SUM(I60-N60),0) -> 55113.00
E61: HRA | F61: =IFERROR(IF($W$9="Yes","",ROUND($F60*'DA HRA Rate'!$D$15,0)),"") -> 4356.00 | G61: Wash All. | H61: =IFERROR(IF(VLOOKUP($Q$1,Allowance,5,0)=0,"",VLOOKUP($Q$1,Allowance,5,0)),"") ->  | J61: =Table4[[#Headers],[GPF]] -> GPF | K61: =IF($A$62=$R$10,$S$10,IF($W$8="NPS","",$K$56)) ->  | L61: =Table4[[#Headers],[GPF Loan]] -> GPF Loan | M61: =IF($A62=$R$13,$S$13,$M56) -> 
A62: January | E62: Handi. All. | F62: =IFERROR(IF(VLOOKUP($Q$1,Allowance,4,0)=0,"",VLOOKUP($Q$1,Allowance,4,0)),"") ->  | G62: CCA All. | H62: =IFERROR(IF(VLOOKUP($Q$1,Allowance,6,0)=0,"",VLOOKUP($Q$1,Allowance,6,0)),"") ->  | J62: =Table4[[#Headers],[SIP]] -> SIP | K62: =IF($K57="","",$K57) -> 3000.00 | L62: =Table4[[#Headers],[SIL]] -> SIL | M62: =IF($A62=$R$14,$S$14,$M57) -> 
A63: =LEFT($O$2,2)&RIGHT($O$2,2) -> 2022 | E63: Ot. Allow 1 | F63: =IFERROR(IF(VLOOKUP($Q$1,Allowance,7,0)=0,"",VLOOKUP($Q$1,Allowance,7,0)),"") ->  | G63: Ot. Allow 2 | H63: =IFERROR(IF(VLOOKUP($Q$1,Allowance,8,0)=0,"",VLOOKUP($Q$1,Allowance,8,0)),"") ->  | J63: =Table4[[#Headers],[RPMF]] -> RPMF | K63: =IF($A62=$R$11,$S$11,IF($W$8="NPS","",$K58)) ->  | L63: =Table4[[#Headers],[Itax]] -> Itax | M63: =IF($A62=$R$15,$S$15,$M58) -> 2000.00
E64: Ot. Allow 3 | F64: =IFERROR(IF(VLOOKUP($Q$1,Allowance,9,0)=0,"",VLOOKUP($Q$1,Allowance,9,0)),"") ->  | G64: Ot. Allow 4 | H64: =IFERROR(IF(VLOOKUP($Q$1,Allowance,10,0)=0,"",VLOOKUP($Q$1,Allowance,10,0)),"") ->  | J64: =Table4[[#Headers],[CM Corona]] -> CM Corona | K64: =IF($A62=$R$17,$S$17,$K59) ->  | L64: =Table4[[#Headers],[Other Ded.]] -> Other Ded. | M64: =IF($A62=$R$16,$S$16,$M59) -> 
B65: Salary | E65: =E60 -> Basic | F65: =IFERROR(IF($A$67=$W$10,$W$11,F60),"") -> 48400.00 | G65: =G60 -> DA | H65: =IFERROR(IF($W$9="Yes","",$F$65*'DA HRA Rate'!$C$16),"") -> 13552.00 | I65: =ROUND(SUM(F65:F69,H65:H69),) -> 66308.00 | J65: ECPenF | K65: =IF($W$8="GPF","",ROUND(SUM($F$65,$H$65)*10%,0)) -> 6195.00 | L65: =Table4[[#Headers],[LIC]] -> LIC | M65: =IF($A67=$R$12,$S$12,$M60) ->  | N65: =ROUND(SUM(K65:K69,M65:M69),0) -> 11195.00 | O65: =ROUND(SUM(I65-N65),0) -> 55113.00
E66: HRA | F66: =IFERROR(IF($W$9="Yes","",ROUND($F65*'DA HRA Rate'!$D$16,0)),"") -> 4356.00 | G66: Wash All. | H66: =IFERROR(IF(VLOOKUP($Q$1,Allowance,5,0)=0,"",VLOOKUP($Q$1,Allowance,5,0)),"") ->  | J66: =Table4[[#Headers],[GPF]] -> GPF | K66: =IF($A$67=$R$10,$S$10,IF($W$8="NPS","",$K$61)) ->  | L66: =Table4[[#Headers],[GPF Loan]] -> GPF Loan | M66: =IF($A67=$R$13,$S$13,$M61) -> 
A67: February | E67: Handi. All. | F67: =IFERROR(IF(VLOOKUP($Q$1,Allowance,4,0)=0,"",VLOOKUP($Q$1,Allowance,4,0)),"") ->  | G67: CCA All. | H67: =IFERROR(IF(VLOOKUP($Q$1,Allowance,6,0)=0,"",VLOOKUP($Q$1,Allowance,6,0)),"") ->  | J67: =Table4[[#Headers],[SIP]] -> SIP | K67: =IF($K62="","",$K62) -> 3000.00 | L67: =Table4[[#Headers],[SIL]] -> SIL | M67: =IF($A67=$R$14,$S$14,$M62) -> 
A68: =LEFT($O$2,2)&RIGHT($O$2,2) -> 2022 | E68: Ot. Allow 1 | F68: =IFERROR(IF(VLOOKUP($Q$1,Allowance,7,0)=0,"",VLOOKUP($Q$1,Allowance,7,0)),"") ->  | G68: Ot. Allow 2 | H68: =IFERROR(IF(VLOOKUP($Q$1,Allowance,8,0)=0,"",VLOOKUP($Q$1,Allowance,8,0)),"") ->  | J68: =Table4[[#Headers],[RPMF]] -> RPMF | K68: =IF($A67=$R$11,$S$11,IF($W$8="NPS","",$K63)) ->  | L68: =Table4[[#Headers],[Itax]] -> Itax | M68: =IF($A67=$R$15,$S$15,$M63) -> 2000.00
E69: Ot. Allow 3 | F69: =IFERROR(IF(VLOOKUP($Q$1,Allowance,9,0)=0,"",VLOOKUP($Q$1,Allowance,9,0)),"") ->  | G69: Ot. Allow 4 | H69: =IFERROR(IF(VLOOKUP($Q$1,Allowance,10,0)=0,"",VLOOKUP($Q$1,Allowance,10,0)),"") ->  | J69: =Table4[[#Headers],[CM Corona]] -> CM Corona | K69: =IF($A67=$R$17,$S$17,$K64) ->  | L69: =Table4[[#Headers],[Other Ded.]] -> Other Ded. | M69: =IF($A67=$R$16,$S$16,$M64) -> 
A70: Month | B70: Bonus | E70: Bouns | F70: =IF(R1="","",IF($S$5="YES",6774,"")) -> 6774.00 | I70: =ROUND(SUM(F70,H70),0) -> 6774.00 | J70: GPF 2004 | L70: =Table4[[#Headers],[Other Ded.]] -> Other Ded. | N70: =ROUND(SUM(K70,M70),0) -> 0.00 | O70: =ROUND(SUM(I70-N70),0) -> 6774.00
A71: Month | B71: DA | E71: DA | G71: DA | I71: =ROUND(SUM(F71,H71),0) -> 0.00 | J71: ECPenF | K71: =IF($W$8="GPF","",ROUND(SUM(F71,H71)*10%,0)) -> 0.00 | L71: =Table4[[#Headers],[Other Ded.]] -> Other Ded. | N71: =ROUND(SUM(K71,M71),0) -> 0.00 | O71: =ROUND(SUM(I71-N71),0) -> 0.00
A72: Month | B72: DA | E72: DA | G72: DA | I72: =ROUND(SUM(F72,H72),0) -> 0.00 | J72: ECPenF | K72: =IF($W$8="GPF","",ROUND(SUM(F72,H72)*10%,0)) -> 0.00 | L72: =Table4[[#Headers],[Other Ded.]] -> Other Ded. | N72: =ROUND(SUM(K72,M72),0) -> 0.00 | O72: =ROUND(SUM(I72-N72),0) -> 0.00
A73: Month | B73: Surrender | E73: Basic | F73: =IFERROR(IF(VLOOKUP($Q$1,Allowance,13,0)="","",IF(VLOOKUP($Q$1,Allowance,13,0)=3,ROUND(F8/2,0),IF(VLOOKUP($Q$1,Allowance,13,0)=4,ROUND(F13/2,0),IF(VLOOKUP($Q$1,Allowance,13,0)=5,ROUND(F18/2,0),IF(VLOOKUP($Q$1,Allowance,13,0)=6,ROUND(F23/2,0),IF(VLOOKUP($Q$1,Allowance,13,0)=7,ROUND(F28/2,0),IF(VLOOKUP($Q$1,Allowance,13,0)=8,ROUND(F33/2,0),IF(VLOOKUP($Q$1,Allowance,13,0)=9,ROUND(F40/2,0),IF(VLOOKUP($Q$1,Allowance,13,0)=10,ROUND(F45/2,0),IF(VLOOKUP($Q$1,Allowance,13,0)=11,ROUND(F50/2,0),IF(VLOOKUP($Q$1,Allowance,13,0)=12,ROUND(F55/2,0),IF(VLOOKUP($Q$1,Allowance,13,0)=1,ROUND(F60/2,0),IF(VLOOKUP($Q$1,Allowance,13,0)=2,ROUND(F65/2,0),""))))))))))))),"") ->  | G73: DA | H73: =IF(F73="","",F73*VLOOKUP($Q$1,Allowance,14,0)) ->  | I73: =ROUND(SUM(F73,H73),0) -> 0.00 | J73: =Table4[[#Headers],[Itax]] -> Itax | L73: =Table4[[#Headers],[Other Ded.]] -> Other Ded. | N73: =ROUND(SUM(K73,M73),0) -> 0.00 | O73: =ROUND(SUM(I73-N73),0) -> 0.00
A74: Government Of Rajasthan | M74: Page No. | O74: 3
A75: GA55 A | M75: Financial Year : | O75: =IF(Master!$I$2="","",Master!$I$2) -> 2021-22
A76: Month | B76: Salary Arrear | E76: Basic | G76: DA | I76: =ROUND(SUM(F76:F77,H76:H77),0) -> 0.00 | J76: ECPenF | K76: =IF($W$8="GPF","",ROUND(SUM(F76,H76)*10%,0)) -> 0.00 | L76: =Table4[[#Headers],[Itax]] -> Itax | N76: =ROUND(SUM(K76:K77,M76:M77),0) -> 0.00 | O76: =ROUND(SUM(I76-N76),0) -> 0.00
E77: HRA | G77: Other | J77: =Table4[[#Headers],[GPF]] -> GPF | L77: =Table4[[#Headers],[Other Ded.]] -> Other Ded.
A78: Month | B78: Other Arrear | E78: Basic | G78: DA | I78: =ROUND(SUM(F78:F79,H78:H79),0) -> 0.00 | J78: ECPenF | K78: =IF($W$8="GPF","",ROUND(SUM(F78,H78)*10%,0)) -> 0.00 | L78: =Table4[[#Headers],[Itax]] -> Itax | N78: =ROUND(SUM(K78:K79,M78:M79),0) -> 0.00 | O78: =ROUND(SUM(I78-N78),0) -> 0.00
E79: HRA | G79: Other | J79: =Table4[[#Headers],[GPF]] -> GPF | L79: =Table4[[#Headers],[Other Ded.]] -> Other Ded.
A80: Month | B80: Other Arrear | E80: Basic | G80: DA | I80: =ROUND(SUM(F80:F81,H80:H81),0) -> 0.00 | J80: ECPenF | K80: =IF($W$8="GPF","",ROUND(SUM(F80,H80)*10%,0)) -> 0.00 | L80: =Table4[[#Headers],[Itax]] -> Itax | N80: =ROUND(SUM(K80:K81,M80:M81),0) -> 0.00 | O80: =ROUND(SUM(I80-N80),0) -> 0.00
E81: HRA | G81: Other | J81: =Table4[[#Headers],[GPF]] -> GPF | L81: =Table4[[#Headers],[Other Ded.]] -> Other Ded.
A82: Month | B82: Other Arrear | E82: Basic | G82: DA | I82: =ROUND(SUM(F82:F83,H82:H83),0) -> 0.00 | J82: ECPenF | K82: =IF($W$8="GPF","",ROUND(SUM(F82,H82)*10%,0)) -> 0.00 | L82: =Table4[[#Headers],[Itax]] -> Itax | N82: =ROUND(SUM(K82:K83,M82:M83),0) -> 0.00 | O82: =ROUND(SUM(I82-N82),0) -> 0.00
E83: HRA | G83: Other | J83: =Table4[[#Headers],[GPF]] -> GPF | L83: =Table4[[#Headers],[Other Ded.]] -> Other Ded.
B84: Total Allowances | G84: Total Allowances
B85: =E8 -> Basic | D85: 100 | E85: =ROUND(SUMIF($E$8:$E$37,B85,$F$8:$F$37)+SUMIF($E$40:$E$73,B85,$F$40:$F$73)+SUMIF($E$76:$E$83,B85,$F$76:$F$83)+SUMIF($G$8:$G$37,B85,$H$8:$H$37)+SUMIF($G$40:$G$73,B85,$H$40:$H$73)+SUMIF($G$76:$G$83,B85,$H$76:$H$83),0) -> 575200.00 | G85: ECPenF | I85: =ROUND(SUMIF($J$8:$J$37,G85,$K$8:$K$37)+SUMIF($J$40:$J$73,G85,$K$40:$K$73)+SUMIF($J$76:$J$83,G85,$K$76:$K$83)+SUMIF($L$8:$L$37,G85,$M$8:$M$37)+SUMIF($L$40:$L$73,G85,$M$40:$M$73)+SUMIF($L$76:$L$83,G85,$M$76:$M$83),0) -> 71556.00
B86: =E9 -> HRA | D86: 107 | E86: =ROUND(SUMIF($E$8:$E$37,B86,$F$8:$F$37)+SUMIF($E$40:$E$73,B86,$F$40:$F$73)+SUMIF($E$76:$E$83,B86,$F$76:$F$83)+SUMIF($G$8:$G$37,B86,$H$8:$H$37)+SUMIF($G$40:$G$73,B86,$H$40:$H$73)+SUMIF($G$76:$G$83,B86,$H$76:$H$83),0) -> 49404.00 | G86: =Table4[[#Headers],[GPF]] -> GPF | I86: =ROUND(SUMIF($J$8:$J$37,G86,$K$8:$K$37)+SUMIF($J$40:$J$73,G86,$K$40:$K$73)+SUMIF($J$76:$J$83,G86,$K$76:$K$83)+SUMIF($L$8:$L$37,G86,$M$8:$M$37)+SUMIF($L$40:$L$73,G86,$M$40:$M$73)+SUMIF($L$76:$L$83,G86,$M$76:$M$83),0) -> 0.00
B87: =E10 -> Handi. All. | E87: =ROUND(SUMIF($E$8:$E$37,B87,$F$8:$F$37)+SUMIF($E$40:$E$73,B87,$F$40:$F$73)+SUMIF($E$76:$E$83,B87,$F$76:$F$83)+SUMIF($G$8:$G$37,B87,$H$8:$H$37)+SUMIF($G$40:$G$73,B87,$H$40:$H$73)+SUMIF($G$76:$G$83,B87,$H$76:$H$83),0) -> 0.00 | G87: =Table4[[#Headers],[SIP]] -> SIP | I87: =ROUND(SUMIF($J$8:$J$37,G87,$K$8:$K$37)+SUMIF($J$40:$J$73,G87,$K$40:$K$73)+SUMIF($J$76:$J$83,G87,$K$76:$K$83)+SUMIF($L$8:$L$37,G87,$M$8:$M$37)+SUMIF($L$40:$L$73,G87,$M$40:$M$73)+SUMIF($L$76:$L$83,G87,$M$76:$M$83),0) -> 36000.00
B88: =G8 -> DA | D88: 104 | E88: =ROUND(SUMIF($E$8:$E$37,B88,$F$8:$F$37)+SUMIF($E$40:$E$73,B88,$F$40:$F$73)+SUMIF($E$76:$E$83,B88,$F$76:$F$83)+SUMIF($G$8:$G$37,B88,$H$8:$H$37)+SUMIF($G$40:$G$73,B88,$H$40:$H$73)+SUMIF($G$76:$G$83,B88,$H$76:$H$83),0) -> 140376.00 | G88: =Table4[[#Headers],[RPMF]] -> RPMF | I88: =ROUND(SUMIF($J$8:$J$37,G88,$K$8:$K$37)+SUMIF($J$40:$J$73,G88,$K$40:$K$73)+SUMIF($J$76:$J$83,G88,$K$76:$K$83)+SUMIF($L$8:$L$37,G88,$M$8:$M$37)+SUMIF($L$40:$L$73,G88,$M$40:$M$73)+SUMIF($L$76:$L$83,G88,$M$76:$M$83),0) -> 0.00
B89: =G9 -> Wash All. | E89: =ROUND(SUMIF($E$8:$E$37,B89,$F$8:$F$37)+SUMIF($E$40:$E$73,B89,$F$40:$F$73)+SUMIF($E$76:$E$83,B89,$F$76:$F$83)+SUMIF($G$8:$G$37,B89,$H$8:$H$37)+SUMIF($G$40:$G$73,B89,$H$40:$H$73)+SUMIF($G$76:$G$83,B89,$H$76:$H$83),0) -> 0.00 | G89: =Table4[[#Headers],[CM Corona]] -> CM Corona | I89: =ROUND(SUMIF($J$8:$J$37,G89,$K$8:$K$37)+SUMIF($J$40:$J$73,G89,$K$40:$K$73)+SUMIF($J$76:$J$83,G89,$K$76:$K$83)+SUMIF($L$8:$L$37,G89,$M$8:$M$37)+SUMIF($L$40:$L$73,G89,$M$40:$M$73)+SUMIF($L$76:$L$83,G89,$M$76:$M$83),0) -> 0.00
B90: =G10 -> CCA All. | E90: =ROUND(SUMIF($E$8:$E$37,B90,$F$8:$F$37)+SUMIF($E$40:$E$73,B90,$F$40:$F$73)+SUMIF($E$76:$E$83,B90,$F$76:$F$83)+SUMIF($G$8:$G$37,B90,$H$8:$H$37)+SUMIF($G$40:$G$73,B90,$H$40:$H$73)+SUMIF($G$76:$G$83,B90,$H$76:$H$83),0) -> 0.00 | G90: =Table4[[#Headers],[LIC]] -> LIC | I90: =ROUND(SUMIF($J$8:$J$37,G90,$K$8:$K$37)+SUMIF($J$40:$J$73,G90,$K$40:$K$73)+SUMIF($J$76:$J$83,G90,$K$76:$K$83)+SUMIF($L$8:$L$37,G90,$M$8:$M$37)+SUMIF($L$40:$L$73,G90,$M$40:$M$73)+SUMIF($L$76:$L$83,G90,$M$76:$M$83),0) -> 0.00
B91: =E70 -> Bouns | E91: =ROUND(SUMIF($E$8:$E$37,B91,$F$8:$F$37)+SUMIF($E$40:$E$73,B91,$F$40:$F$73)+SUMIF($E$76:$E$83,B91,$F$76:$F$83)+SUMIF($G$8:$G$37,B91,$H$8:$H$37)+SUMIF($G$40:$G$73,B91,$H$40:$H$73)+SUMIF($G$76:$G$83,B91,$H$76:$H$83),0) -> 6774.00 | G91: =Table4[[#Headers],[GPF Loan]] -> GPF Loan | I91: =ROUND(SUMIF($J$8:$J$37,G91,$K$8:$K$37)+SUMIF($J$40:$J$73,G91,$K$40:$K$73)+SUMIF($J$76:$J$83,G91,$K$76:$K$83)+SUMIF($L$8:$L$37,G91,$M$8:$M$37)+SUMIF($L$40:$L$73,G91,$M$40:$M$73)+SUMIF($L$76:$L$83,G91,$M$76:$M$83),0) -> 0.00
B92: =Table3[[#Headers],[Ot. Allow 1]] -> Ot. Allow 1 | E92: =ROUND(SUMIF($E$8:$E$37,B92,$F$8:$F$37)+SUMIF($E$40:$E$73,B92,$F$40:$F$73)+SUMIF($E$76:$E$83,B92,$F$76:$F$83)+SUMIF($G$8:$G$37,B92,$H$8:$H$37)+SUMIF($G$40:$G$73,B92,$H$40:$H$73)+SUMIF($G$76:$G$83,B92,$H$76:$H$83),0) -> 0.00 | G92: =Table4[[#Headers],[SIL]] -> SIL | I92: =ROUND(SUMIF($J$8:$J$37,G92,$K$8:$K$37)+SUMIF($J$40:$J$73,G92,$K$40:$K$73)+SUMIF($J$76:$J$83,G92,$K$76:$K$83)+SUMIF($L$8:$L$37,G92,$M$8:$M$37)+SUMIF($L$40:$L$73,G92,$M$40:$M$73)+SUMIF($L$76:$L$83,G92,$M$76:$M$83),0) -> 0.00
B93: =Table3[[#Headers],[Ot. Allow 2]] -> Ot. Allow 2 | E93: =ROUND(SUMIF($E$8:$E$37,B93,$F$8:$F$37)+SUMIF($E$40:$E$73,B93,$F$40:$F$73)+SUMIF($E$76:$E$83,B93,$F$76:$F$83)+SUMIF($G$8:$G$37,B93,$H$8:$H$37)+SUMIF($G$40:$G$73,B93,$H$40:$H$73)+SUMIF($G$76:$G$83,B93,$H$76:$H$83),0) -> 0.00 | G93: =Table4[[#Headers],[Itax]] -> Itax | I93: =ROUND(SUMIF($J$8:$J$37,G93,$K$8:$K$37)+SUMIF($J$40:$J$73,G93,$K$40:$K$73)+SUMIF($J$76:$J$83,G93,$K$76:$K$83)+SUMIF($L$8:$L$37,G93,$M$8:$M$37)+SUMIF($L$40:$L$73,G93,$M$40:$M$73)+SUMIF($L$76:$L$83,G93,$M$76:$M$83),0) -> 18300.00
B94: =Table3[[#Headers],[Ot. Allow 3]] -> Ot. Allow 3 | E94: =ROUND(SUMIF($E$8:$E$37,B94,$F$8:$F$37)+SUMIF($E$40:$E$73,B94,$F$40:$F$73)+SUMIF($E$76:$E$83,B94,$F$76:$F$83)+SUMIF($G$8:$G$37,B94,$H$8:$H$37)+SUMIF($G$40:$G$73,B94,$H$40:$H$73)+SUMIF($G$76:$G$83,B94,$H$76:$H$83),0) -> 0.00 | G94: =Table4[[#Headers],[Other Ded.]] -> Other Ded. | I94: =ROUND(SUMIF($J$8:$J$37,G94,$K$8:$K$37)+SUMIF($J$40:$J$73,G94,$K$40:$K$73)+SUMIF($J$76:$J$83,G94,$K$76:$K$83)+SUMIF($L$8:$L$37,G94,$M$8:$M$37)+SUMIF($L$40:$L$73,G94,$M$40:$M$73)+SUMIF($L$76:$L$83,G94,$M$76:$M$83),0) -> 0.00
B95: Total Allowances: | D95: =ROUND(SUM(E85:E93),0) -> 771754.00 | G95: Total Deduction: | I95: =ROUND(SUM(I85:J94),0) -> 125856.00 | L95: Total Net Amount : | N95: =ROUND(SUM(D95-I95),0) -> 645898.00
